Cogmind - Beta 17 @@@ ROGUE MODE // 2026.06.23 @ 16:18:30 Player: szymekc Result: Destroyed by X-87 Electro with Compact HERF Cannon Performance ------------- Evolutions (9) 4500 Regions Visited (27) 5400 Robots Destroyed (450) 2250 Value Destroyed (21731) 21731 Prototype IDs (109) 2180 Alien Tech Used (5) 1000 Bonus (53279) 53279 TOTAL SCORE: 90340 Bonus ------- Triggered High Security 500 High Alert Combat Kills 4318 Follower Combat Kills 1495 Prayed to X0-1V1 5000 Major X0-1V1 Interference 20250 Subatomizer Sterilization 3000 Entered DSFs 500 Met Imprinter 300 Was Imprinted 300 Acquired ECA 300 Met Zhirov 300 Met Warlord at Base 500 MAIN.C Attacked Warlord 500 Warlord Defense Kills 7544 Scanned by Researcher 500 Met MAIN.C 5000 Destroyed MAIN.C Shell 5000 Friendly Fire -2028 Cogmind --------- Core Integrity 0/1350 Matter 997/1000 Energy 99/100 System Corruption 25% Temperature Cool (0) Movement Core (50) Location -1/Command Parts ------- > --- POWER (2) -------- (None) > --- PROPULSION (8) --- (None) > --- UTILITY (11) ----- (None) > --- WEAPON (4) ------- (None) > --- INVENTORY (5) ---- Experimental Transmission Jammer Enhanced Nova Cannon Improved Potential Cannon Tactical Quantum Warhead Peak State ------------ > --- POWER ------------ Cooled Antimatter Reactor Zero-point Reactor > --- PROPULSION ------- Experimental Gyrokinetic Inverter Experimental Gyrokinetic Inverter Experimental Gyrokinetic Inverter Experimental Gyrokinetic Inverter Cooled Linear Gravjet Cooled Linear Gravjet Combat Linear Gravjet Combat Linear Gravjet > --- UTILITY ---------- Experimental Power Amplifier Advanced Heat Sink Large Storage Unit Spectral Analyzer Experimental Melee Analysis Suite Experimental Transmission Jammer Experimental Cloaking Device Centrium Heavy Armor Plating Experimental EM Shield X0-1V1's Piety Tracker > --- WEAPON ----------- Heavy Scimitar of Distortion Heavy Scimitar of Distortion Sigix Broadsword > --- INVENTORY -------- Antigrav Array Experimental Gyrokinetic Inverter Experimental Matter Compressor Experimental Weapon Cycler Advanced Force Field Advanced Force Field Enhanced Nova Cannon Improved Potential Cannon Gamma Bomb Array Chaos Jack Vibroblade Nanosword Armageddon Trap [Rating: 249] Favorites ----------- Power Heavy Antimatter Reactor Engine Light Angular Momentum Engine Power Core Light Fission Core Reactor Heavy Antimatter Reactor Propulsion Experimental Gyrokinetic Inverter Treads Light Treads Leg Enhanced Armored Leg Wheel Armored Wheel Hover Unit Experimental Gyrokinetic Inverter Flight Unit Surge Thruster Utility X0-1V1's Piety Tracker Device X0-1V1's Piety Tracker Storage Medium Storage Unit Processor Core Analyzer Hackware System Shield Protection Hardened Heavy Armor Plating Weapon KE Penetrator Energy Gun Heavy Gatling Laser Energy Cannon Nova Cannon Ballistic Gun KE Penetrator Ballistic Cannon Heavy Flak Cannon Launcher Grenade Launcher Special Weapon RU-N14's Throwing Claymores v3 Impact Weapon Hammer Slashing Weapon Heavy Scimitar of Distortion Piercing Weapon Vortex Lance Special Melee Weapon Chaos Jack Build | -11 -10 -10 -8 -7 -7 -6 -6 -6 -6 -5 -5 -5 -5 -5 -4 -4 -4 -4 -4 -3 -3 -3 -2 -2 -2 -1 -1 ------- Run | Yrd Mat Sub Mat Fac DSF Fac Low Low Zio Pro Fac Upp Upp Zhi Pro Fac Upp Upp War Pro Res Tes Res Qua Frg Acc Com Slots Evolved 18 | . . . 4 2 . 2 . . . . 2 . . . . 2 . . . . 2 . 2 . . 2 . Power . | . . . . . . . . . . . . . . . . . . . . . . . . . . . . Propulsion 7 | . . . 2 1 . . . . . . . . . . . 1 . . . . 2 . . . . 1 . Utility 10 | . . . 1 1 . 2 . . . . 2 . . . . 1 . . . . . . 2 . . 1 . Weapon 1 | . . . 1 . . . . . . . . . . . . . . . . . . . . . . . . Parts Attached 301 | 8 8 5 28 7 17 13 6 . 2 5 25 9 2 6 3 27 1 4 24 . 16 15 13 10 8 35 4 Power 31 | 1 2 1 2 . . 1 . . . . 3 2 1 1 . 2 . . 5 . 1 . . 2 2 5 . Engine 8 | 1 2 1 1 . . . . . . . . 1 1 . . . . . . . . . . . 1 . . Core 6 | . . . 1 . . 1 . . . . 3 . . . . . . . 1 . . . . . . . . Reactor 17 | . . . . . . . . . . . . 1 . 1 . 2 . . 4 . 1 . . 2 1 5 . Propulsion 80 | 2 . 2 11 1 7 1 2 . 2 2 8 2 . 2 . 5 1 . 9 . 4 2 4 . . 12 1 Treads 8 | 2 . 1 5 . . . . . . . . . . . . . . . . . . . . . . . . Leg 18 | . . . . . 1 . . . . . 6 2 . 1 . 4 1 . 2 . . 1 . . . . . Wheel 2 | . . 1 1 . . . . . . . . . . . . . . . . . . . . . . . . Hover 35 | . . . . 1 . . 1 . 2 . 2 . . 1 . . . . 6 . 4 1 4 . . 12 1 Flight 17 | . . . 5 . 6 1 1 . . 2 . . . . . 1 . . 1 . . . . . . . . Utility 119 | 3 4 1 5 3 5 9 1 . . 1 9 3 1 2 1 12 . 3 5 . 9 8 6 7 4 14 3 Device 73 | 2 2 1 3 1 2 3 . . . 1 7 2 1 1 1 7 . 2 3 . 6 5 4 5 4 9 1 Storage 9 | 1 1 . 1 . . 1 . . . . . . . . . 1 . . . . 1 1 . . . 1 1 Processor 18 | . . . . 1 1 4 1 . . . 1 . . . . . . . 1 . 2 2 2 . . 3 . Hackware 1 | . . . . 1 . . . . . . . . . . . . . . . . . . . . . . . Protection 18 | . 1 . 1 . 2 1 . . . . 1 1 . 1 . 4 . 1 1 . . . . 2 . 1 1 Artifact . | . . . . . . . . . . . . . . . . . . . . . . . . . . . . Weapon 71 | 2 2 1 10 3 5 2 3 . . 2 5 2 . 1 2 8 . 1 5 . 2 5 3 1 2 4 . Energy Gun 13 | 2 . . 4 . . 1 . . . . . . . . 1 4 . 1 . . . . . . . . . Energy Cannon 14 | . . 1 2 1 . . . . . . 2 . . . . 2 . . 2 . 1 1 . . 1 1 . Ballistic Gun 12 | . . . 3 . . 1 1 . . . 3 1 . . . 1 . . 1 . 1 . . . . . . Ballistic Cannon 3 | . . . . . . . 1 . . . . 1 . . 1 . . . . . . . . . . . . Launcher 7 | . 1 . 1 . . . . . . 1 . . . . . 1 . . . . . . 2 . . 1 . Special Weapon 1 | . . . . . . . . . . . . . . . . . . . 1 . . . . . . . . Impact Weapon 1 | . 1 . . . . . . . . . . . . . . . . . . . . . . . . . . Slashing Weapon 15 | . . . . 1 5 . 1 . . . . . . 1 . . . . . . . 4 . 1 . 2 . Piercing Weapon 3 | . . . . . . . . . . 1 . . . . . . . . 1 . . . 1 . . . . Special Melee Weapon 2 | . . . . 1 . . . . . . . . . . . . . . . . . . . . 1 . . Unidentified Prototypes 76 | . 1 . 5 . . 2 . . . . 2 . . 6 . 13 . . 11 . 3 9 3 5 3 12 1 Corrupted Parts 3 | . . . 1 . . . . . . . 1 . . . . 1 . . . . . . . . . . . System Corruption 23 | . . . 10 . . . . . . . 4 . . . . 9 . . . . . . . . . . . Parts Lost 90 | . 4 6 14 . 5 9 . . . 1 3 . 1 . . 2 . 1 2 . . . 6 1 5 2 28 Power 11 | . 2 1 1 . . . . . . . . . 1 . . . . . 1 . . . . . 2 . 3 Propulsion 27 | . . 3 7 . 2 4 . . . 1 . . . . . 1 . . . . . . . . . . 9 Utility 35 | . 2 1 2 . 1 3 . . . . 3 . . . . . . 1 1 . . . 4 1 3 2 11 Weapon 17 | . . 1 4 . 2 2 . . . . . . . . . 1 . . . . . . 2 . . . 5 Highest Loss Streak 28 | . 2 5 13 . 3 3 . . . 1 1 . 1 . . 2 . 1 2 . . . 3 1 2 1 28 To Critical Strikes 1 | . . 1 . . . . . . . . . . . . . . . . . . . . . . . . . Average Backups 10 | 2 7 12 16 4 4 6 8 10 8 8 8 9 9 9 10 9 9 9 9 9 8 14 13 12 11 11 10 Power . | . . . 1 1 . . 1 1 . . . . . . . . . . . 1 1 . 1 . . . . Propulsion 1 | . . . 2 . . . 1 2 . 1 1 . . 1 3 3 3 3 1 2 . 1 1 . . 2 . Utility 3 | . 1 5 7 1 1 2 3 5 5 5 2 3 2 2 2 1 1 2 1 1 1 6 5 5 5 3 4 Weapon 3 | 1 4 5 4 1 1 1 1 1 1 1 4 5 6 5 4 4 3 3 4 4 4 4 4 3 3 4 4 Tool/Special . | . . . . . . . . . . . . . . . . . . . . . . . . . . . . Unused Backups 70 | . 1 . 13 2 . 1 4 2 1 3 8 1 1 . 2 2 . . 5 . 1 3 2 1 1 14 2 Power 7 | . . . 4 . . . 1 . . . . . . . . . . . . . 1 . . . . 1 . Propulsion 18 | . 1 . . . . 1 2 1 . . 4 . . . . . . . 1 . . . 2 . . 4 2 Utility 24 | . . . 6 1 . . 1 1 1 2 1 1 1 . . 2 . . 2 . . 2 . . . 3 . Weapon 20 | . . . 3 1 . . . . . 1 3 . . . 2 . . . 2 . . 1 . 1 . 6 . Tool/Special 1 | . . . . . . . . . . . . . . . . . . . . . . . . . 1 . . Average Slot Usage (%) 91 | . 95 94 93 42 58 88 81 93 96 99 94 94 93 88 94 91 89 92 96 100 99 90 90 95 90 91 81 Engine 2 | . 13 13 8 . . . . . . . . 1 4 5 5 . . . . . . . . . . 1 . Core 1 | . . . . . 1 5 . . 3 6 10 3 . . . . . . . 5 3 . . . . . . Reactor 4 | . . . . . . . . . . . . 4 5 5 5 9 10 10 9 5 4 4 4 6 5 6 6 Treads 3 | . 28 22 24 . . . . . . . . . . . . . . . . . . . . . . . . Leg 9 | . . . . . 1 . . . . . 24 28 23 23 23 23 26 26 11 . . . . . . . . Hover 11 | . . . . . 1 . 6 13 19 26 3 . . . . . . . 16 26 32 32 27 30 30 31 27 Flight 2 | . . . . 7 17 27 18 20 12 5 . . . . . . . . . . . . . . . . . Device 16 | . 12 13 17 16 10 13 13 13 13 13 12 11 17 17 17 21 21 20 22 26 22 17 17 17 19 21 14 Storage 5 | . 7 14 8 . . 2 6 6 6 6 5 5 5 5 5 5 5 5 5 5 4 4 4 4 4 4 3 Processor 10 | . . . . 1 7 14 20 20 20 18 11 11 11 11 11 10 10 10 8 5 4 10 17 19 13 10 14 Protection 3 | . 3 . . . 3 6 . . . . 3 5 5 5 5 4 . 3 5 5 4 3 2 1 3 3 3 Energy Gun 4 | . 6 . 18 . . . . . . . . . . . 3 6 14 14 11 10 8 1 . . . . . Energy Cannon 1 | . . 10 1 1 . . 2 4 . 2 1 . . . . 3 . . 2 3 4 1 2 2 . . . Ballistic Gun 3 | . . . 3 . . 2 3 6 5 6 10 16 17 3 1 2 . . . 5 4 1 . . . . . Impact Weapon 1 | . 11 14 2 . . . . . . . . . . . . . . . . . . . . . . . . Slashing Weapon 4 | . . . . 3 7 12 6 6 6 6 3 . . 3 5 1 . . . . . 9 11 9 9 11 11 Peak Build Rating 249 | 9 20 22 43 37 53 68 73 73 82 83 98 107 106 106 109 143 143 145 158 157 181 197 219 230 231 249 239 Average Rating 121 | 5 9 19 37 28 34 58 63 72 77 79 95 104 104 99 108 124 142 138 141 154 176 186 206 223 217 240 205 On Entrance 107 | . 9 20 22 19 37 53 51 72 73 82 77 97 105 106 106 109 143 143 137 157 154 174 189 218 219 197 236 Avg Prop Armor Cover (%) 6 | . . . 18 . 3 . 7 7 6 2 2 . . . . . . . 1 . . . . . 5 . . Naked Turns 1 | . . . . . . . . . . . . . . . . . . . . . . . . . . . 1 Heaviest Build 130 | 10 31 31 62 9 16 29 29 27 34 44 74 80 81 83 92 95 69 97 97 82 89 100 101 102 111 130 125 Greatest Support 161 | 40 40 40 80 9 17 35 27 27 60 60 93 113 90 93 93 126 126 126 161 86 117 129 103 105 105 134 131 Greatest Overweight (x) 12 | . . 9 5 1 1 . 1 . . . 1 . . . . . . . 3 1 . 1 . . 12 1 1 Average Overweight (x) . | . . . 1 . . . . . . . . . . . . . . . . . . . . . . . . Largest Inventory Capacity 20 | 8 15 15 20 5 5 10 10 10 10 10 10 10 10 10 10 10 10 10 10 10 15 15 15 15 15 15 15 Average Capacity 11 | 5 10 15 16 5 5 7 10 10 10 10 10 10 10 10 10 10 10 10 10 10 10 15 15 15 15 15 13 Most Carried 20 | 4 12 15 20 5 5 10 10 10 10 10 10 10 10 10 10 10 10 10 10 10 11 15 15 15 15 15 14 Average Carried 10 | 2 7 12 16 4 4 6 8 9 8 9 9 9 9 9 9 9 9 9 9 10 9 14 14 14 14 14 12 Final Capacity 15 | 5 15 15 5 5 5 10 10 10 10 10 10 10 10 10 10 10 10 10 10 10 15 15 15 15 15 15 5 Final Carried 15 | 4 12 15 5 4 5 10 10 10 8 10 10 10 10 10 10 10 10 10 10 10 11 15 13 15 14 14 5 Class Distribution -------------------- 17% | Mutant 9% | Scavenger-Sprinter 9% | Sprinter 8% | Scavenger-Mutant 8% | Scavenger-Gunner 7% | Scavenger-Tank 5% | Messiah-Tank 5% | Derelict-Mutant 5% | Messiah-Skirmisher 4% | Scavenger-Ninja 3% | Derelict-Sprinter Dominant Class ---------------- Mutant | -10/Materials Mutant | -10/Subcaves Scavenger-Gunner | -8/Materials Mutant | -7/Factory Scavenger-Sprinter | -7/DSF Scavenger-Sprinter | -6/Factory Derelict-Sprinter | -6/Lower Caves Derelict-Sprinter | -6/Lower Caves Derelict-Mutant | -6/Zion Derelict-Mutant | -5/Proximity Caves Mutant | -5/Factory Scavenger-Gunner | -5/Upper Caves Scavenger-Tank | -5/Upper Caves Scavenger-Mutant | -5/Zhirov Scavenger-Mutant | -4/Proximity Caves Scavenger-Tank | -4/Factory Messiah-Skirmisher | -4/Upper Caves Messiah-Tank | -4/Upper Caves Messiah-Tank | -4/Warlord Tank | -3/Proximity Caves Scavenger-Sprinter | -3/Research Scavenger-Sprinter | -3/Testing Scavenger-Sprinter | -2/Research Scavenger-Scout | -2/Quarantine Scavenger-Ninja | -2/Protoforge Sprinter | -1/Access Sprinter | -1/Command Resources | -11 -10 -10 -8 -7 -7 -6 -6 -6 -6 -5 -5 -5 -5 -5 -4 -4 -4 -4 -4 -3 -3 -3 -2 -2 -2 -1 -1 ----------- Run | Yrd Mat Sub Mat Fac DSF Fac Low Low Zio Pro Fac Upp Upp Zhi Pro Fac Upp Upp War Pro Res Tes Res Qua Frg Acc Com Matter Collected 14106 | 280 143 205 450 182 413 191 717 87 20 210 1509 863 354 402 302 873 122 404 1583 44 371 416 770 641 682 1000 872 Remotely . | . . . . . . . . . . . . . . . . . . . . . . . . . . . . Salvage Created 21128 | 135 679 195 1446 100 288 410 403 92 . 235 1862 1185 279 221 156 1140 744 451 2099 . 681 1393 1522 789 1201 2355 1067 Parts 928 | 10 35 13 65 3 27 21 13 3 . 17 87 53 13 5 6 53 20 10 86 . 20 77 46 43 54 104 44 Haulers Intercepted 13 | . 2 . 2 1 . 1 . . . . . . . . . . . 1 . . 2 2 . . . 2 . Recyclers Shooed 9 | 1 1 . . . . 1 . . . . 4 . . . . . . . . . . . 1 . . . 1 Parts Field Recycled . | . . . . . . . . . . . . . . . . . . . . . . . . . . . . Retrieved Matter . | . . . . . . . . . . . . . . . . . . . . . . . . . . . . Parts Self-Destructed 91 | . . 1 . . . . 7 6 . 11 . 31 8 2 1 . 16 8 . . . . . . . . . Prevented 3 | . . . . . . . . . . . . 2 . . . . 1 . . . . . . . . . . Parts Restored . | . . . . . . . . . . . . . . . . . . . . . . . . . . . . Kills | -11 -10 -10 -8 -7 -7 -6 -6 -6 -6 -5 -5 -5 -5 -5 -4 -4 -4 -4 -4 -3 -3 -3 -2 -2 -2 -1 -1 ------- Run | Yrd Mat Sub Mat Fac DSF Fac Low Low Zio Pro Fac Upp Upp Zhi Pro Fac Upp Upp War Pro Res Tes Res Qua Frg Acc Com Combat Hostiles Destroyed 366 | . 12 10 23 . 10 4 2 2 . 14 29 23 4 . 8 19 12 12 67 . 7 8 18 11 24 36 11 Melee 91 | . 5 . . . 10 3 . . . . 1 . . . . . . . . . . 6 18 10 12 18 8 Guns 90 | . . . 18 . . . . . . 7 14 18 4 . . 7 7 5 3 . 5 2 . . . . . Cannons 31 | . . 4 1 . . . 2 2 . 2 6 1 . . 2 6 . . 5 . . . . . . . . AOE 132 | . 4 6 . . . 1 . . . 5 7 3 . . 6 3 3 7 58 . . . . . 11 15 3 Classes Destroyed 35 | 2 6 2 3 1 2 1 1 2 . . . 2 1 . 1 1 2 . 4 . . 1 2 . 1 . . Worker 23 | . 3 . . 1 . 1 . . . . 2 . . . . 2 . . . . . 4 2 . 1 2 5 Builder 14 | . 1 . 1 . . . . . . . 1 . . . . 3 . . . . . 2 1 . 1 4 . Tunneler 3 | 2 . . . . . . . . . . . . . . . . . . . . . . 1 . . . . Hauler 13 | . 2 . 2 1 . 1 . . . . . . . . . . . 1 . . 2 2 . . . 2 . Recycler 11 | 1 2 . 1 . . 1 . . . . 3 . . . . . . . . . . 1 . . . 2 . Minesweeper 1 | . . . . . . . . . . . . . . . . . 1 . . . . . . . . . . Mechanic 4 | . . . . 1 . . . . . . 1 . . . . . . . 1 . . . . . 1 . . Operator 3 | . 1 . 1 . . . . . . . 1 . . . . . . . . . . . . . . . . Drone 14 | . . . . . . . . . . . . . . . 2 . . . . . . . . . 3 9 . Turret 2 | . . 2 . . . . . . . . . . . . . . . . . . . . . . . . . Watcher 9 | . . . 1 . . . . . . . . . . . . . . . . . . 2 3 . 2 1 . Swarmer 93 | . 3 4 3 . . 1 . . . 14 9 7 . . 4 6 2 2 14 . . . 5 . 9 6 4 Cutter 6 | . . . . . 6 . . . . . . . . . . . . . . . . . . . . . . Saboteur 5 | . . . . . . . . . . . . . . . . . . . 5 . . . . . . . . Grunt 109 | . 9 . 12 . 2 1 1 . . . 14 7 . . 2 4 8 9 21 . 3 4 4 . . 8 . Brawler 4 | . . . . . . . . . . . . 1 . . . . . . 3 . . . . . . . . Duelist 8 | . . . . . . . . 2 . . . . . . . . . . 4 . 1 . . . . 1 . Protector 9 | . . . . . . . . . . . . . . . . . . . 8 . . . 1 . . . . Researcher 5 | . . . . . . . . . . . . . . . . . . . . . . 5 . . . . . Sentry 27 | . . . 6 . . 1 1 . . . 2 1 1 . . 4 1 1 . . 1 . 1 2 3 1 1 Demolisher 2 | . . . . . . 1 . . . . . . . . . . . . 1 . . . . . . . . Specialist 12 | . . . . . 2 . . . . . 2 . 2 . . . . . 2 . . . . . 3 1 . Hunter 23 | . . . 2 . . . . . . . 2 2 . . . 1 . . 2 . . . 4 3 . 5 2 Programmer 23 | . . . . . . . . . . . . 1 . . . 3 1 . 5 . 2 2 1 . 2 4 2 Heavy 1 | . . . . . . . . . . . . . . . . 1 . . . . . . . . . . . Q-Series 2 | . . . . . . . . . . . . . . . . . . . . . . . . . 1 1 . Behemoth 3 | . . . . . . . . . . . . . . . . . . . . . . . 2 . . . 1 Quarantine Guard 6 | . . . . . . . . . . . . . . . . . . . . . . . . 6 . . . Enhanced Demolisher 1 | . . . . . . . . . . . . . . . . . . . 1 . . . . . . . . Hotshot 4 | . . . . . . . . . . . . . . . . . . . . . . . . . 4 . . Striker 1 | . . . . . . . . . . . . . . . . . . . 1 . . . . . . . . Executioner 1 | . . . . . . . . . . . . . . . . . . . 1 . . . . . . . . Protovariant G 1 | . . . . . . . . . . . . . . . . . . . . . . 1 . . . . . Protovariant L 1 | . . . . . . . . . . . . . . . . . . . . . . 1 . . . . . Subdweller 6 | . . 6 . . . . . . . . . . . . . . . . . . . . . . . . . Z-Light 1 | . . . . . . . . . . . . . . . . . . . . . . . 1 . . . . Z-Heavy 1 | . . . . . . . . . . . . . . . . . 1 . . . . . . . . . . Decomposer 1 | . . . . . . . 1 . . . . . . . . . . . . . . . . . . . . Samaritan 1 | . . . . . . . . 1 . . . . . . . . . . . . . . . . . . . Tinkerer 1 | . . . . . . . 1 . . . . . . . . . . . . . . . . . . . . Thug 4 | . . . . . . . . . . . . 4 . . . . . . . . . . . . . . . Mutant 1 | . . . . . . . . . . . . . 1 . . . . . . . . . . . . . . Commander 2 | . . . . . . . . . . . . 1 . . . . . . 1 . . . . . . . . Best Kill Streak 22 | 3 5 4 5 2 4 2 1 2 . 5 11 7 2 . 4 6 7 5 22 . 6 9 7 3 11 12 9 Combat Bots Only 21 | . 4 4 4 . 4 2 1 2 . 5 11 7 2 . 4 6 7 5 21 . 4 4 7 3 9 10 6 Max Kills in Single Turn 7 | 1 2 2 2 1 1 1 1 1 . 3 4 3 1 . 3 4 2 2 7 . 1 1 2 1 6 5 5 Gunslinging 1 | . . . 1 . . . . . . . 1 1 . . . . . 1 . . . . . . . . . Exploded 7 | . 2 1 . . . 1 . . . 3 3 3 . . 3 2 2 2 7 . . . . . 5 5 2 Melee 2 | . 1 . . . 1 1 . . . . 1 . . . . . . . . . . 1 2 1 1 1 1 Uniques/NPCs Destroyed 1 | . . . . . . . . . . . . . . . . . . . . . . . . . . . 1 MAIN.C Shell (-1/Command) Combat | -11 -10 -10 -8 -7 -7 -6 -6 -6 -6 -5 -5 -5 -5 -5 -4 -4 -4 -4 -4 -3 -3 -3 -2 -2 -2 -1 -1 -------- Run | Yrd Mat Sub Mat Fac DSF Fac Low Low Zio Pro Fac Upp Upp Zhi Pro Fac Upp Upp War Pro Res Tes Res Qua Frg Acc Com Hostile Shots Fired 2506 | . 60 55 122 . 73 124 61 5 . 47 153 84 36 . 20 121 65 22 50 12 50 64 228 62 229 342 421 Missed 1036 | . 24 19 48 . 31 61 30 4 . 18 63 30 17 . 6 57 18 10 22 5 22 18 116 27 136 131 123 Hits 1470 | . 36 36 74 . 42 63 31 1 . 29 90 54 19 . 14 64 47 12 28 7 28 46 112 35 93 211 298 Melee 35 | . . . . . 18 . . . . . . . . . . 10 . . 1 . . . . . . . 6 Projectile 1435 | . 36 36 74 . 24 63 31 1 . 29 90 54 19 . 14 54 47 12 27 7 28 46 112 35 93 211 292 AOE 18 | . . 1 . . . . . . . . . . . . . . . . 4 . . . . . 4 1 8 Critical Strikes 100 | . 1 1 5 . 11 2 . . . . 7 5 . . 1 7 2 1 3 . . 5 4 3 5 9 28 Part Disruptions 14 | . . . . . . . . . . . . . . . . . . . . . . . . . 1 1 12 Damage Taken 21936 | . 453 666 1698 . 664 781 190 12 . 252 1028 698 299 . 70 682 266 119 798 24 181 31 1077 562 1943 2618 6824 Core 4311 | . 88 130 323 . 130 95 44 . . 45 61 54 . . . 43 29 . 95 . 58 2 153 89 202 73 2597 Absorbed by Shields 5671 | . . . . . . . . . . 226 392 58 103 . 77 727 294 44 41 . . 7 811 580 363 1489 459 Ignored by Resistances 10449 | . . . 31 . 135 174 110 . . . 373 296 23 . 129 253 358 96 137 . 485 1193 1262 20 240 1222 3912 Regen/Repaired (Parts) 2233 | . . . . . . 32 . . . . . . . . . 105 . . 11 . . . . 120 538 1183 244 Core Remaining (%) 68 | 100 . 21 47 . 71 . . . . 69 . . . . 84 . . . . 81 . 94 . . 52 . . Volleys Fired 613 | 6 6 31 64 9 . 16 19 13 . 16 74 52 12 1 24 50 28 16 60 . 28 26 15 9 19 8 11 Largest 4 | 2 1 1 3 1 . 2 2 1 . 2 3 3 3 1 1 3 3 3 3 . 4 4 1 1 1 1 1 Hottest 279 | 80 30 60 191 65 . 93 109 65 . 74 166 149 101 33 51 214 214 226 262 . 279 279 113 200 200 200 200 Shots Fired 1158 | 11 6 31 171 9 . 22 24 13 . 30 148 133 34 1 23 115 73 28 101 . 85 38 15 9 19 8 11 Gun 743 | 11 . . 156 . . 7 2 . . 14 115 125 34 1 4 77 71 18 28 . 58 22 . . . . . Cannon 323 | . . 19 15 9 . 15 22 13 . 14 28 7 . . 15 36 . . 45 . 27 16 11 9 9 4 9 Launcher 91 | . 6 12 . . . . . . . 2 5 1 . . 4 2 2 10 27 . . . 4 . 10 4 2 Special 1 | . . . . . . . . . . . . . . . . . . . 1 . . . . . . . . Kinetic 455 | . . . 35 . . 7 7 11 . 28 115 125 34 1 19 36 . . 3 . 20 14 . . . . . Thermal 385 | 5 . 19 15 9 . 15 17 2 . . 4 . . . . 54 71 18 25 . 65 24 11 9 9 4 9 Explosive 88 | . 6 12 . . . . . . . 2 5 1 . . 4 2 2 10 28 . . . . . 10 4 2 Electromagnetic 230 | 6 . . 121 . . . . . . . 24 7 . . . 23 . . 45 . . . 4 . . . . Robot Hit Streak 34 | 9 10 11 34 7 . 8 9 6 . 3 8 11 6 . 4 8 20 12 13 . 9 15 1 1 1 3 4 Robot Miss Streak 8 | . 1 1 2 1 . . 5 6 . 3 4 6 2 . 2 7 8 2 4 . 3 1 1 3 1 . . Penetration Max 1 | . . . . . . . . . . 1 1 1 . . 1 1 . . . . . . . . . . . Secondary Targets 19 | . . . 5 . . . . . . . 3 6 1 . . 1 2 1 . . . . . . . . . Max Gunslinging Chain 1 | . . . 1 . . . . . . . 1 1 1 . . 1 1 1 . . . . . . . . . Shots Hit Robots 1172 | 9 27 25 123 13 19 22 18 12 . 19 104 70 22 5 12 74 50 18 70 . 49 55 71 24 48 122 91 Core Hits 837 | 4 23 22 52 1 13 12 13 13 . 22 61 42 10 2 13 39 33 32 173 . 24 29 51 14 42 56 41 Critical Kills 9 | . 2 . . . . . . . . . 1 . . . 1 . . . . . 4 1 . . . . . Critical Parts Destroyed 17 | . 5 . 1 . . . . . . . 1 . . . 3 2 . . . . 3 2 . . . . . Critical Strikes 76 | . 7 . 3 . 1 5 1 . . . 6 1 . . 4 3 5 . . . 7 8 12 3 . 6 4 Burn 6 | . . . . . . . . . . . . . . . . 1 5 . . . . . . . . . . Meltdown 1 | . . . . . . . . . . . . . . . . . . . . . 1 . . . . . . Destroy 18 | . . . . . . . . . . . 2 1 . . 4 2 . . . . 6 3 . . . . . Corrupt 3 | . . . 2 . . . . . . . 1 . . . . . . . . . . . . . . . . Smash 8 | . 7 . 1 . . . . . . . . . . . . . . . . . . . . . . . . Sever 29 | . . . . . 1 5 1 . . . 3 . . . . . . . . . . 5 4 . . 6 4 Sunder 11 | . . . . . . . . . . . . . . . . . . . . . . . 8 3 . . . Melee Attacks 779 | . 34 7 1 6 35 32 23 1 1 3 23 2 . 6 1 11 . . 2 . . 67 101 52 81 181 109 Impact 42 | . 34 7 1 . . . . . . . . . . . . . . . . . . . . . . . . Slashing 665 | . . . . 5 35 32 23 1 1 3 23 2 . 5 1 5 . . . . . 67 66 34 73 180 109 Piercing 16 | . . . . . . . . . . . . . . 1 . 6 . . . . . . . . 8 1 . Entropic 55 | . . . . . . . . . . . . . . . . . . . 2 . . . 35 18 . . . Sneak Attacks 87 | . 5 1 . 3 1 8 3 1 . . 3 2 . . . . . . 2 . . 16 5 5 16 16 . Combat Hostiles 12 | . . . . . . . . . . . . . . . . . . . . . . 2 1 5 2 2 . Follow-up Attacks 94 | . . . . . 1 4 . . . . . . . . . . . . . . . 10 16 4 5 23 31 Damage Inflicted 77784 | 109 1306 1057 2495 526 915 713 776 326 . 867 4061 2369 542 403 675 2913 1905 2505 15936 . 1420 3344 6920 2872 5877 10564 6388 Guns 11602 | 109 . . 2120 . . 18 . . . 237 1852 1871 542 . 22 1180 1416 405 611 . 881 338 . . . . . Cannons 5295 | . . 312 230 217 . . 87 249 . 161 699 150 . . 217 820 . . 1214 . 539 117 . 199 . 84 . Explosions 26809 | . 542 679 113 . . 57 . . . 426 909 194 . . 436 779 489 2100 13792 . . . 899 156 2159 2126 953 Melee 33748 | . 764 66 32 309 898 638 689 77 . 43 601 154 . 403 . 33 . . 319 . . 2862 5980 2420 3676 8354 5430 Ramming 288 | . . . . . 17 . . . . . . . . . . 101 . . . . . 27 41 97 . . 5 Kinetic 6405 | . . . 304 . . 18 59 249 . 398 1852 1871 542 . 239 612 . . 54 . 104 103 . . . . . Thermal 7274 | 32 . 312 343 217 . . 28 . . . 32 . . . . 930 1451 405 1068 . 1316 352 272 355 77 84 . Explosive 24982 | . 542 679 . . . 57 . . . 426 909 194 . . 436 743 454 2100 13281 . . . . . 2082 2126 953 Electromagnetic 5045 | 77 . . 1816 . . . . . . . 667 150 . . . 494 . . 1214 . . . 627 . . . . Impact 862 | . 764 66 32 . . . . . . . . . . . . . . . . . . . . . . . . Slashing 27616 | . . . . 309 898 638 689 77 . 43 601 154 . 403 . . . . . . . 2862 2603 857 3700 8352 5430 Piercing 53 | . . . . . . . . . . . . . . . . 33 . . . . . . . . 18 2 . Entropic 5259 | . . . . . . . . . . . . . . . . . . . 319 . . . 3377 1563 . . . Highest Corruption 25 | . . . 10 . . 4 4 4 4 . 20 18 18 16 16 13 13 1 5 . . 12 3 3 3 5 25 Average Corruption 9 | . . . 10 . . 3 4 4 4 . 19 18 17 16 16 12 6 1 3 . . 5 2 3 2 2 6 Corruption Purged 2 | . . . . . . . . . . . . . 2 . . . . . . . . . . . . . . Corruption Blocked . | . . . . . . . . . . . . . . . . . . . . . . . . . . . . Effects 273 | . . . 1 . . 8 8 3 1 . 36 54 28 20 19 37 9 4 3 . . 13 2 1 4 14 8 Message Errors 65 | . . . . . . . 2 . . . 5 13 9 5 6 7 2 . 1 . . 5 1 . 2 6 1 Matter Fused 64 | . . . . . . 5 3 . . . 5 12 5 4 5 10 5 1 . . . 4 . . 1 2 2 Heat Flow Errors 31 | . . . . . . . . . . . 5 3 5 4 3 5 . 1 . . . . 1 . 1 3 . Energy Discharges 30 | . . . 1 . . 1 1 . . . 4 9 2 6 . 2 . 1 . . . . . 1 . . 2 Parts Rejected 10 | . . . . . . . . . . . 3 1 . . 1 1 1 . 1 . . 1 . . . . 1 Parts Fused 2 | . . . . . . . . 1 . . . . . . . . . . . . . . . . . 1 . Data Loss (minor) 23 | . . . . . . . 2 . 1 . 5 3 1 1 1 3 . 1 1 . . 2 . . . 1 1 Data Loss (major) 10 | . . . . . . . . . . . 4 . 2 . . 3 . . . . . . . . . 1 . Misfires 11 | . . . . . . 2 . 1 . . 1 2 2 . . 2 1 . . . . . . . . . . Alerts 2 | . . . . . . . . . . . . . . . 2 . . . . . . . . . . . . Misdirections 4 | . . . . . . . . . . . 2 . . . . . . . . . . 1 . . . . 1 Weapon Failures 21 | . . . . . . . . 1 . . 2 11 2 . 1 4 . . . . . . . . . . . Overload Shots 2 | . . . . . . . . . . . . . . . . . 2 . . . . . . . . . . Effects 1 | . . . . . . . . . . . . . . . . . 1 . . . . . . . . . . Energy Bleed 1 | . . . . . . . . . . . . . . . . . 1 . . . . . . . . . . Overflow Damage 4232 | . 278 29 43 108 23 18 150 . . 2 169 . . 102 . 52 28 119 197 . 1 439 381 131 853 1019 90 Projectiles 21 | . . . . . . . . . . 2 . . . . . . . . 18 . 1 . . . . . . Explosions 688 | . 41 29 11 . . . . . . . 28 . . . . 31 28 119 174 . . . . 68 . 82 77 Melee 3523 | . 237 . 32 108 23 18 150 . . . 141 . . 102 . 21 . . 5 . . 439 381 63 853 937 13 Knockbacks 28 | . 4 . 1 . . . . 8 . 7 . . . . 7 1 . . . . . . . . . . . Impact 6 | . 4 . 1 . . . . . . . . . . . . 1 . . . . . . . . . . . Kinetic 20 | . . . . . . . . 8 . 7 . . . . 5 . . . . . . . . . . . . Secondary 2 | . . . . . . . . . . . . . . . 2 . . . . . . . . . . . . Self-Inflicted Damage 789 | . 33 90 53 . . 70 . . . 33 24 . . . . . . . 61 . . 13 71 48 48 155 90 Shots 22 | . 2 4 1 . . 1 . . . 1 1 . . . . . . . 1 . . . 5 . 1 3 2 Rammed 4 | . . . . . . . . . . . . . . . . . . . . . . 1 1 1 . . 1 Targets Rammed 10 | . . . . . 4 . . . . . . . . . . 2 . . . . . 1 1 1 . . 1 Kicked 6 | . . . . . 4 . . . . . . . . . . 2 . . . . . . . . . . . Crushed . | . . . . . . . . . . . . . . . . . . . . . . . . . . . . Highest Temperature 358 | 90 9 . 176 . 95 80 12 16 . 57 278 260 253 218 210 185 7 54 208 . 29 211 73 90 99 336 358 Average Temperature 49 | 46 5 . 49 . 47 19 4 11 . 28 67 103 111 97 95 70 4 16 61 . 12 65 19 51 42 34 59 Received Heat Transfer 3328 | . 180 108 432 . 174 168 93 . . . 176 327 8 . 42 88 107 42 9 . 57 306 81 4 144 124 658 Effects 1 | . . . . . . . . . . . . 1 . . . . . . . . . . . . . . . Interference 1 | . . . . . . . . . . . . 1 . . . . . . . . . . . . . . . Siege Activations . | . . . . . . . . . . . . . . . . . . . . . . . . . . . . Martial Activations . | . . . . . . . . . . . . . . . . . . . . . . . . . . . . Shielding Activations . | . . . . . . . . . . . . . . . . . . . . . . . . . . . . Robots Disrupted 2 | . . . 1 . . . . . . . . . . . . . . . 1 . . . . . . . . Combat Hostiles 2 | . . . 1 . . . . . . . . . . . . . . . 1 . . . . . . . . Robots Corrupted 17 | . 5 . 4 . . . . . . . 1 1 . . . 3 . . 1 . . . 1 1 . . . Combat Hostiles 13 | . 3 . 4 . . . . . . . 1 1 . . . 2 . . 1 . . . . 1 . . . Parts Fried 54 | . 5 . 13 . . . . . . . 5 4 . . . 8 . . 7 . . . 8 2 2 . . Impact Corruptions 15 | . 10 . 2 . . . . . . . . . . . . 2 . . . . . . . 1 . . . Robots Melted 5 | . . . . . . . . . . . . . . . . 1 2 . . . 2 . . . . . . Combat Hostiles 5 | . . . . . . . . . . . . . . . . 1 2 . . . 2 . . . . . . Parts Melted 28 | . . 3 . . . . . . . . . . . . . 5 8 1 2 . 9 . . . . . . Heat Transferred 10481 | 75 . 666 544 296 . . 37 . . . 37 . . . . 1261 2754 648 1424 . 1688 484 227 210 80 50 . Parts Sabotaged 2 | . . . . . . . . . . . . . . . . . . . . . . . . . . . 2 Parts Stolen 2 | . . . . . . . . . . . . . . . . 2 . . . . . . . . . . . Parts Stripped 55 | . . . . . . . . . . . . . . . . . . . . . . . . . 21 34 . Power Chain Reactions 13 | . . . 2 . . . . . . . . . . . . 1 1 . 7 . . . 2 . . . . Alert | -11 -10 -10 -8 -7 -7 -6 -6 -6 -6 -5 -5 -5 -5 -5 -4 -4 -4 -4 -4 -3 -3 -3 -2 -2 -2 -1 -1 ------- Run | Yrd Mat Sub Mat Fac DSF Fac Low Low Zio Pro Fac Upp Upp Zhi Pro Fac Upp Upp War Pro Res Tes Res Qua Frg Acc Com Maximum Alert Level 5 | . 1 . 2 1 1 1 . . . . 3 . . . . 3 . . . . . 2 2 3 5 5 5 Low Security (%) 23 | 100 77 . 37 28 9 39 . . . . 3 . . . . . . . . . 100 57 12 . . . . Level 1 19 | . 22 . 46 71 90 60 . . . . 3 . . . . 2 . . . . . 26 65 17 . . . Level 2 21 | . . . 16 . . . . . . . 81 . . . . 28 . . . . . 15 22 58 24 . . Level 3 16 | . . . . . . . . . . . 12 . . . . 68 . . . . . . . 23 30 17 . Level 4 10 | . . . . . . . . . . . . . . . . . . . . . . . . . 34 51 21 Level 5 7 | . . . . . . . . . . . . . . . . . . . . . . . . . 9 21 78 High Security 1 | . . . . . . . . . . . . . . . . . . . . . . . . . . 8 . Max Security . | . . . . . . . . . . . . . . . . . . . . . . . . . . . . Sterilizations 2 | . . . . . 1 . . . . . 1 . . . . . . . . . . . . . . . . Peak Influence 2354 | 15 255 . 464 247 368 267 . . . . 736 . . . . 1092 . . . . 178 417 559 811 1628 2354 1903 Initial 1506 | . . . 43 141 139 193 . . . . 173 . . . . 481 . . . . . 92 228 309 456 965 1506 Average 615 | 1 118 . 245 201 264 192 . . . . 541 . . . . 747 . . . . 65 209 285 571 1057 1486 1764 Influence Increases 15447 | 15 406 360 771 138 319 566 175 85 . 448 1075 500 60 5 170 1681 265 255 1533 . 300 593 771 798 1586 2065 507 Destroy 0b10 Robot/C 7920 | . 240 120 460 . 240 80 40 40 . 300 620 460 60 . 120 600 240 240 1280 . 140 320 420 260 480 940 220 Destroy 0b10 Robot/NC 515 | 15 45 . 30 15 . 15 . . . . 40 . . 5 10 45 5 5 45 . 10 60 45 . 35 65 25 Destroy Leader 1078 | . 54 . 136 2 40 12 . . . 30 80 40 . . 10 154 20 10 . . 34 36 98 80 84 128 30 Allied During Kill 589 | . . . . . 5 . . . . 58 62 . . . . 125 . . 178 . . 34 49 14 9 55 . Successful Hack 92 | . . . . 5 . 32 . . . . . . . . . 4 . . . . . 24 . . . 27 . Disable Machine 435 | . 15 . 15 . . 45 . . . . 15 . . . . 75 . . . . . 15 . 165 30 45 15 Destroy Structure 1748 | . 37 . 13 . 4 37 . . . . 76 . . . . 198 . . . . 26 44 129 159 408 400 217 Advance Influence 450 | . . . . . . . . . . . . . . . . 450 . . . . . . . . . . . Partial Spotted 345 | . . . . . . 105 . . . . . . . . . . . . . . 15 . . 120 45 60 . Lose Combat Pursuer 1425 | . 15 240 15 . 30 240 135 45 . 60 . . . . 30 30 . . 30 . 75 60 30 . 45 345 . Miscellaneous 850 | . . . 102 116 . . . . . . 182 . . . . . . . . . . . . . 450 . . Influence Decreases 13864 | 15 365 317 543 251 150 721 293 119 61 172 659 649 400 208 120 663 658 473 679 1311 135 351 627 538 787 1321 1278 Entered New Map 5948 | . . 21 41 171 60 175 79 19 61 . 103 257 104 203 . 19 396 129 457 1311 . 73 179 242 355 645 848 Time Decay 5986 | 15 325 236 362 80 . 206 214 100 . 162 416 392 286 5 120 464 262 334 152 . 115 278 238 286 342 446 150 Search Patrol Dispatched 200 | . . . . . . 100 . . . . . . . . . 100 . . . . . . . . . . . Lost Part 900 | . 40 60 140 . 50 90 . . . 10 30 . 10 . . 20 . 10 20 . . . 60 10 50 20 280 Lost Ally 680 | . . . . . 40 . . . . . 110 . . . . 60 . . 50 . 20 . 150 . 40 210 . Purge Threat 150 | . . . . . . 150 . . . . . . . . . . . . . . . . . . . . . Squads Dispatched 74 | . 2 . 7 . 4 3 . . . . 10 . . . . 5 . . . . 3 4 6 1 7 21 1 Investigation 14 | . 1 . 2 . . 2 . . . . 4 . . . . 1 . . . . . . 1 . 1 2 . Extermination 17 | . . . . . . 1 . . . . 2 . . . . 2 . . . . 1 2 2 . 2 4 1 Reinforcement 23 | . 1 . 3 . 4 . . . . . 1 . . . . 2 . . . . 2 2 3 . . 5 . Assault 18 | . . . . . . . . . . . 3 . . . . . . . . . . . . 1 4 10 . Garrison 2 | . . . 2 . . . . . . . . . . . . . . . . . . . . . . . . Intercept . | . . . . . . . . . . . . . . . . . . . . . . . . . . . . Searches Triggered 2 | . . . . . . 1 . . . . . . . . . 1 . . . . . . . . . . . Construction Impeded 1 | . . . . . . . . . . . . . . . . . . . . . . 1 . . . . . Haulers Reinforced 1 | . . . . . . . . . . . . . . . . . . . . . . . . . . 1 . Active Scanning Responses . | . . . . . . . . . . . . . . . . . . . . . . . . . . . . Cargo Convoy Interrupts 2 | . . . . . . . . . . . . . . . . 1 . . . . . . 1 . . . . Stealth | -11 -10 -10 -8 -7 -7 -6 -6 -6 -6 -5 -5 -5 -5 -5 -4 -4 -4 -4 -4 -3 -3 -3 -2 -2 -2 -1 -1 --------- Run | Yrd Mat Sub Mat Fac DSF Fac Low Low Zio Pro Fac Upp Upp Zhi Pro Fac Upp Upp War Pro Res Tes Res Qua Frg Acc Com Distress Signals 20 | . . . 4 . . 3 . . . . 1 . . . . 1 . . 1 . . 1 2 . 1 4 2 Communications Jammed 56 | . . . . . . . . . . . . . . . . . . . . . . . . . . 31 25 Distress Signals 44 | . . . . . . . . . . . . . . . . . . . . . . . . . . 19 25 Times Spotted 734 | . 19 17 42 1 22 28 13 5 . 19 40 21 9 . 12 32 15 11 111 1 19 10 52 14 45 96 80 Peak Tracking Total 52 | . 4 4 8 . 7 13 3 3 . 5 9 5 5 . 5 4 7 5 17 1 9 4 15 4 9 14 52 Tactical Retreats 44 | . 1 3 1 . 2 8 3 1 . 2 . . . . 1 2 . . 2 . 2 2 2 . 1 11 . Traps | -11 -10 -10 -8 -7 -7 -6 -6 -6 -6 -5 -5 -5 -5 -5 -4 -4 -4 -4 -4 -3 -3 -3 -2 -2 -2 -1 -1 ------- Run | Yrd Mat Sub Mat Fac DSF Fac Low Low Zio Pro Fac Upp Upp Zhi Pro Fac Upp Upp War Pro Res Tes Res Qua Frg Acc Com Traps Triggered 19 | . 2 . 1 . 1 1 . . . . 1 . . . . . . . . . . 2 2 . 2 7 . Indirectly . | . . . . . . . . . . . . . . . . . . . . . . . . . . . . Trap Hack Attempts . | . . . . . . . . . . . . . . . . . . . . . . . . . . . . Triggered . | . . . . . . . . . . . . . . . . . . . . . . . . . . . . Disarmed . | . . . . . . . . . . . . . . . . . . . . . . . . . . . . Reprogrammed . | . . . . . . . . . . . . . . . . . . . . . . . . . . . . Reused . | . . . . . . . . . . . . . . . . . . . . . . . . . . . . Traps Extracted . | . . . . . . . . . . . . . . . . . . . . . . . . . . . . Installed . | . . . . . . . . . . . . . . . . . . . . . . . . . . . . Triggered . | . . . . . . . . . . . . . . . . . . . . . . . . . . . . Most Traps Carried 1 | . . . . . . . . . . . . . . . . . . . . . . . . . . 1 . Machines | -11 -10 -10 -8 -7 -7 -6 -6 -6 -6 -5 -5 -5 -5 -5 -4 -4 -4 -4 -4 -3 -3 -3 -2 -2 -2 -1 -1 ---------- Run | Yrd Mat Sub Mat Fac DSF Fac Low Low Zio Pro Fac Upp Upp Zhi Pro Fac Upp Upp War Pro Res Tes Res Qua Frg Acc Com Machines Disabled 40 | . 1 3 1 . . 3 . . . . 1 2 1 1 . 5 2 . 1 . . 1 . 11 3 3 1 Max in Single Turn 2 | . 1 2 1 . . 2 . . . . 1 1 1 1 . 1 1 . 1 . . 1 . 1 2 1 1 Garrison Access 6 | . . . 1 . . 1 . . . . 1 . . . . 1 . . . . 1 . . . . 1 . Energy Cycler 1 | . . . . . . . . . . . . . . . . . . . . . . . . . . 1 . Machines Repaired . | . . . . . . . . . . . . . . . . . . . . . . . . . . . . Machines Dismantled . | . . . . . . . . . . . . . . . . . . . . . . . . . . . . Machines Sabotaged . | . . . . . . . . . . . . . . . . . . . . . . . . . . . . Overloaded Fab Kills . | . . . . . . . . . . . . . . . . . . . . . . . . . . . . Hacking | -11 -10 -10 -8 -7 -7 -6 -6 -6 -6 -5 -5 -5 -5 -5 -4 -4 -4 -4 -4 -3 -3 -3 -2 -2 -2 -1 -1 --------- Run | Yrd Mat Sub Mat Fac DSF Fac Low Low Zio Pro Fac Upp Upp Zhi Pro Fac Upp Upp War Pro Res Tes Res Qua Frg Acc Com Machines Accessed 45 | . 1 . 2 4 . 8 2 1 . . 3 4 . 4 . 5 1 1 1 . 1 2 2 1 . 2 . Terminals 15 | . 1 . 1 2 . 4 1 1 . . 1 1 . . . 1 1 . . . . . . . . 1 . Fabricators 5 | . . . . 2 . . . . . . 1 . . . . 1 . . . . . . 1 . . . . Repair Stations 4 | . . . . . . 2 . . . . . . . . . 1 . . . . . 1 . . . . . Recycling Units . | . . . . . . . . . . . . . . . . . . . . . . . . . . . . Scanalyzers 6 | . . . . . . 1 . . . . 1 . . . . 1 . . . . . 1 1 1 . . . Garrison Access 5 | . . . 1 . . 1 . . . . . . . . . 1 . . . . 1 . . . . 1 . Total Hacks 95 | . 1 . 2 7 . 17 5 1 . . 4 12 . 17 . 8 4 1 1 . 2 5 3 3 . 2 . Successful 69 | . . . 1 3 . 9 5 1 . . . 12 . 17 . 6 4 1 1 . 1 3 1 2 . 2 . Failed 25 | . 1 . 1 4 . 8 . . . . 4 . . . . 2 . . . . 1 1 2 1 . . . Catastrophic 4 | . . . . 1 . . . . . . 1 . . . . . . . . . 1 . 1 . . . . Database Lockouts 1 | . . . . . . . . . . . . . . . . . . . . . . 1 . . . . . Manual 147 | . 1 . . . . 1 . . . . 11 . . . . 29 . . . . 14 23 8 18 9 30 3 Terminals 29 | . 1 . 1 2 . 10 4 1 . . 1 3 . . . 1 4 . . . . . . . . 1 . Fabricators 8 | . . . . 5 . . . . . . 1 . . . . 1 . . . . . . 1 . . . . Repair Stations 5 | . . . . . . 2 . . . . . . . . . 1 . . . . . 2 . . . . . Recycling Units . | . . . . . . . . . . . . . . . . . . . . . . . . . . . . Scanalyzers 17 | . . . . . . 3 . . . . 2 . . . . 4 . . . . . 3 2 3 . . . Garrison Access 7 | . . . 1 . . 2 . . . . . . . . . 1 . . . . 2 . . . . 1 . Terminal Hacks 48 | . . . . 1 . 5 5 1 . . . 12 . 17 . . 4 1 1 . . . . . . 1 . Record 25 | . . . . . . . 4 1 . . . 10 . 5 . . 4 1 . . . . . . . . . Part Schematic 5 | . . . . . . 1 . . . . . . . 4 . . . . . . . . . . . . . Robot Analysis 4 | . . . . . . . . . . . . . . 4 . . . . . . . . . . . . . Prototype ID Bank 5 | . . . . . . 1 . . . . . . . 4 . . . . . . . . . . . . . Open Door 5 | . . . . . . . 1 . . . . 2 . . . . . . 1 . . . . . . 1 . Open DSF 2 | . . . . 1 . 1 . . . . . . . . . . . . . . . . . . . . . Unreport Threat 1 | . . . . . . 1 . . . . . . . . . . . . . . . . . . . . . Locate Traps 1 | . . . . . . 1 . . . . . . . . . . . . . . . . . . . . . Fabricator Hacks 2 | . . . . 2 . . . . . . . . . . . . . . . . . . . . . . . Network Status 1 | . . . . 1 . . . . . . . . . . . . . . . . . . . . . . . Build 1 | . . . . 1 . . . . . . . . . . . . . . . . . . . . . . . Repair Station Hacks 1 | . . . . . . . . . . . . . . . . . . . . . . 1 . . . . . Scan Component 1 | . . . . . . . . . . . . . . . . . . . . . . 1 . . . . . Recycling Unit Hacks . | . . . . . . . . . . . . . . . . . . . . . . . . . . . . Scanalyzer 11 | . . . . . . 2 . . . . . . . . . 4 . . . . . 2 1 2 . . . Insert Component 3 | . . . . . . . . . . . . . . . . . . . . . . 1 . 2 . . . Retrieve Study 8 | . . . . . . 2 . . . . . . . . . 4 . . . . . 1 1 . . . . Garrison Access Hacks 5 | . . . 1 . . 1 . . . . . . . . . 1 . . . . 1 . . . . 1 . Seal Access 5 | . . . 1 . . 1 . . . . . . . . . 1 . . . . 1 . . . . 1 . Unauthorized Hacks 2 | . . . . . . 1 . . . . . . . . . 1 . . . . . . . . . . . Terminals . | . . . . . . . . . . . . . . . . . . . . . . . . . . . . Fabricators . | . . . . . . . . . . . . . . . . . . . . . . . . . . . . Repair Stations 2 | . . . . . . 1 . . . . . . . . . 1 . . . . . . . . . . . Patch 2 | . . . . . . 1 . . . . . . . . . 1 . . . . . . . . . . . Recycling Units . | . . . . . . . . . . . . . . . . . . . . . . . . . . . . Scanalyzers . | . . . . . . . . . . . . . . . . . . . . . . . . . . . . Garrison Access . | . . . . . . . . . . . . . . . . . . . . . . . . . . . . Data Cores Recovered . | . . . . . . . . . . . . . . . . . . . . . . . . . . . . Used . | . . . . . . . . . . . . . . . . . . . . . . . . . . . . Hacking Detections 21 | . 1 . 1 3 . 3 1 . . . 2 1 . . . 3 1 . . . . 1 2 1 . 1 . Full Trace Events 2 | . . . . . . . . . . . . 1 . . . . 1 . . . . . . . . . . Feedback Events . | . . . . . . . . . . . . . . . . . . . . . . . . . . . . Feedback Blocked . | . . . . . . . . . . . . . . . . . . . . . . . . . . . . Robot Schematics Acquired 17 | . . . . . . . . . 4 . . . . . . . . . . . . 10 . 3 . . . Robots Built . | . . . . . . . . . . . . . . . . . . . . . . . . . . . . Authchips . | . . . . . . . . . . . . . . . . . . . . . . . . . . . . Time . | . . . . . . . . . . . . . . . . . . . . . . . . . . . . Total Robot Build Rating . | . . . . . . . . . . . . . . . . . . . . . . . . . . . . Part Schematics Acquired 68 | . . . . . . 1 . . 13 . . . . 4 . 11 . . . . . 15 . 12 12 . . Parts Built . | . . . . . . . . . . . . . . . . . . . . . . . . . . . . Authchips . | . . . . . . . . . . . . . . . . . . . . . . . . . . . . Time 84 | . . . . 84 . . . . . . . . . . . . . . . . . . . . . . . Total Part Build Rating . | . . . . . . . . . . . . . . . . . . . . . . . . . . . . Part Studies Acquired 8 | . . . . . . 2 . . . . . . . . . 4 . . . . . 1 1 . . . . Parts Repaired . | . . . . . . . . . . . . . . . . . . . . . . . . . . . . Time . | . . . . . . . . . . . . . . . . . . . . . . . . . . . . Parts Recycled . | . . . . . . . . . . . . . . . . . . . . . . . . . . . . Recycled Matter . | . . . . . . . . . . . . . . . . . . . . . . . . . . . . Retrieved Matter . | . . . . . . . . . . . . . . . . . . . . . . . . . . . . Retrieved Components . | . . . . . . . . . . . . . . . . . . . . . . . . . . . . Parts Scanalyzed . | . . . . . . . . . . . . . . . . . . . . . . . . . . . . Part Schematics Acquired . | . . . . . . . . . . . . . . . . . . . . . . . . . . . . Parts Damaged . | . . . . . . . . . . . . . . . . . . . . . . . . . . . . Bothacking | -11 -10 -10 -8 -7 -7 -6 -6 -6 -6 -5 -5 -5 -5 -5 -4 -4 -4 -4 -4 -3 -3 -3 -2 -2 -2 -1 -1 ------------ Run | Yrd Mat Sub Mat Fac DSF Fac Low Low Zio Pro Fac Upp Upp Zhi Pro Fac Upp Upp War Pro Res Tes Res Qua Frg Acc Com Used RIF Installer . | . . . . . . . . . . . . . . . . . . . . . . . . . . . . Robots Hacked 1 | . . . . 1 . . . . . . . . . . . . . . . . . . . . . . . Non-combat 1 | . . . . 1 . . . . . . . . . . . . . . . . . . . . . . . Combat . | . . . . . . . . . . . . . . . . . . . . . . . . . . . . Robot Hacks Applied 1 | . . . . 1 . . . . . . . . . . . . . . . . . . . . . . . find_dsf 1 | . . . . 1 . . . . . . . . . . . . . . . . . . . . . . . Relay Couplers Released 2 | . . . . . . . . . . . 2 . . . . . . . . . . . . . . . . Machine Destruction 2 | . . . . . . . . . . . 2 . . . . . . . . . . . . . . . . Fabnet Peak Effective % . | . . . . . . . . . . . . . . . . . . . . . . . . . . . . Robots Rewired 5 | . . . . . . . . . . . . . . . . . . . 5 . . . . . . . . Allies Hacked 3 | . . . . . . . . . . . . . . . . . . . . . . 1 1 . . 1 . Hacks Repelled . | . . . . . . . . . . . . . . . . . . . . . . . . . . . . Allies | -11 -10 -10 -8 -7 -7 -6 -6 -6 -6 -5 -5 -5 -5 -5 -4 -4 -4 -4 -4 -3 -3 -3 -2 -2 -2 -1 -1 -------- Run | Yrd Mat Sub Mat Fac DSF Fac Low Low Zio Pro Fac Upp Upp Zhi Pro Fac Upp Upp War Pro Res Tes Res Qua Frg Acc Com Total Allies 60 | . . . . . 2 . . . 4 . 5 . . . . 9 . . 5 . 2 3 9 3 4 14 . Largest Group 6 | . . . . . 2 . . . 4 4 4 . . . . 6 2 . 5 1 2 3 4 3 2 4 . Highest-Rated Group 464 | . . . . . 66 . . . 155 155 192 . . . . 379 118 . 272 56 56 174 464 267 58 382 . Highest-Rated Ally 146 | . . . . . 33 . . . 42 42 48 . . . . 103 91 . 64 56 33 58 122 89 50 146 . Zionite Dispatches 17 | . . . . . . . . . . . 2 . . . . 4 . . . . 2 . 3 . . 6 . Heavy 4 | . . . . . . . . . . . . . . . . 2 . . . . . . 1 . . 1 . Light 1 | . . . . . . . . . . . . . . . . . . . . . . . 1 . . . . Recon 1 | . . . . . . . . . . . 1 . . . . . . . . . . . . . . . . Hacker 1 | . . . . . . . . . . . . . . . . . . . . . . . . . . 1 . Hero 1 | . . . . . . . . . . . . . . . . . . . . . . . . . . 1 . Thermal Resupply 2 | . . . . . . . . . . . 1 . . . . 1 . . . . . . . . . . . Resource Resupply 1 | . . . . . . . . . . . . . . . . . . . . . . . . . . 1 . Defense Resupply 1 | . . . . . . . . . . . . . . . . 1 . . . . . . . . . . . Infowar Resupply 2 | . . . . . . . . . . . . . . . . . . . . . 1 . 1 . . . . Hover Resupply 3 | . . . . . . . . . . . . . . . . . . . . . 1 . . . . 2 . Initial Warlord ECA Mod 9 | . . . . . . 9 9 9 9 . . . . . . . . . . . . . . . . . . Total Orders 10 | . . . . . . . . . . . 1 . . . . 2 . . . . 2 1 1 . . 3 . STAY 1 | . . . . . . . . . . . . . . . . . . . . . . 1 . . . . . DROP 9 | . . . . . . . . . . . 1 . . . . 2 . . . . 2 . 1 . . 3 . Ally Attacks 233 | . . . . . 11 . . . . 8 21 . . . . 56 . . 33 . . 14 25 8 8 49 . Total Damage 10631 | . . . . . 178 . . . . 62 395 . . . . 3460 . . 1634 . . 585 1446 246 173 2452 . Kills 54 | . . . . . 2 . . . . 1 2 . . . . 18 . . 5 . . 4 5 2 2 13 . Allies Corrupted 3 | . . . . . . . . . . . . . . . . . . . 1 . . . 1 . . 1 . Allies Melted 2 | . . . . . . . . . . . 2 . . . . . . . . . . . . . . . . X0-1V1 Amusement Gains 698 | . 5 10 35 . 10 15 . . . . 90 . . 71 . 20 . . 89 . . 80 50 25 58 80 60 Good Acts 145 | . . 4 4 1 6 7 5 6 . 2 10 . 3 . 7 7 3 3 7 . 1 7 7 13 10 25 7 Bad Acts 126 | . . 1 5 2 . 9 5 1 . 3 23 6 3 . . 3 2 2 12 . 5 9 3 7 6 15 4 Intel | -11 -10 -10 -8 -7 -7 -6 -6 -6 -6 -5 -5 -5 -5 -5 -4 -4 -4 -4 -4 -3 -3 -3 -2 -2 -2 -1 -1 ------- Run | Yrd Mat Sub Mat Fac DSF Fac Low Low Zio Pro Fac Upp Upp Zhi Pro Fac Upp Upp War Pro Res Tes Res Qua Frg Acc Com Active Infowar (turns) 13412 | 47 320 . . 91 178 . 369 201 482 464 1000 890 638 440 394 1160 568 758 878 181 300 608 506 622 765 1225 327 Optics 12755 | . . . . . . . 369 201 482 464 1000 890 638 440 394 1160 568 758 878 181 300 608 506 622 765 1225 306 Sensors 1598 | . . . . . . . . . . . . . . . . 2 . . . . 236 250 341 319 450 . . A.S.S. 839 | . . . . . . . . . . . . . . . . 53 568 218 . . . . . . . . . IFF 737 | . . . . . . . . . . . . . . . . . . . . . . . . . 1 736 . Terrain 307 | 38 269 . . . . . . . . . . . . . . . . . . . . . . . . . . Seismic 474 | 47 318 . . 91 18 . . . . . . . . . . . . . . . . . . . . . . T.N.C. 226 | . . . . 48 178 . . . . . . . . . . . . . . . . . . . . . . Triangulation 8 | . . . . . . . . . . . . . . . . . . . . . 8 . . . . . . Cloaking 1776 | . . . . . . . . . . . 77 . . . . . . . 5 180 251 390 256 73 371 150 23 Jamming 1160 | . . . . . . . . . . . . . . . . . . . . . . . 107 . 546 472 35 ECM 2 | . 2 . . . . . . . . . . . . . . . . . . . . . . . . . . Robot Analysis Total 4 | . . . . . . . . . . . . . . 4 . . . . . . . . . . . . . Derelict Logs Recovered 15 | . . . . . . . 1 1 2 3 . 1 3 . 2 . 1 1 . . . . . . . . . Drone Launches . | . . . . . . . . . . . . . . . . . . . . . . . . . . . . Drone Recoveries . | . . . . . . . . . . . . . . . . . . . . . . . . . . . . Zionite Intel Received 18 | . . . . . . . . . . . . . . . . 3 . . . . 1 5 . 4 2 3 . Branch Access 1 | . . . . . . . . . . . . . . . . . . . . . 1 . . . . . . Emergency Access 3 | . . . . . . . . . . . . . . . . 1 . . . . . 1 . . 1 . . Guard Positions 1 | . . . . . . . . . . . . . . . . . . . . . . 1 . . . . . Component Stockpiles 2 | . . . . . . . . . . . . . . . . . . . . . . . . 1 . 1 . Prototype Stockpiles 3 | . . . . . . . . . . . . . . . . 1 . . . . . 1 . 1 . . . Component Schematics 2 | . . . . . . . . . . . . . . . . . . . . . . . . 1 1 . . Prototype Schematics 1 | . . . . . . . . . . . . . . . . 1 . . . . . . . . . . . Unaware Schematics 2 | . . . . . . . . . . . . . . . . . . . . . . 1 . 1 . . . Unaware Analyses 1 | . . . . . . . . . . . . . . . . . . . . . . . . . . 1 . Active Garrisons 2 | . . . . . . . . . . . . . . . . . . . . . . 1 . . . 1 . Exploration | -11 -10 -10 -8 -7 -7 -6 -6 -6 -6 -5 -5 -5 -5 -5 -4 -4 -4 -4 -4 -3 -3 -3 -2 -2 -2 -1 -1 ------------- Run | Yrd Mat Sub Mat Fac DSF Fac Low Low Zio Pro Fac Upp Upp Zhi Pro Fac Upp Upp War Pro Res Tes Res Qua Frg Acc Com Turns Passed 16302 | 131 1021 529 824 169 222 430 453 201 482 464 1000 925 638 440 394 1160 568 758 878 181 300 608 506 622 765 1225 408 Spaces Moved 17630 | 62 546 281 403 195 186 1040 1002 516 873 569 624 603 491 323 269 731 410 638 906 217 561 1151 710 1112 887 1939 385 Core 26 | 1 . 1 . . . . . . . . . . . . . . . . . . . . . . 1 . 23 Treads 949 | 61 546 213 129 . . . . . . . . . . . . . . . . . . . . . . . . Legs 4279 | . . . . . . . . . . . 523 603 491 323 269 731 410 638 291 . . . . . . . . Wheels 309 | . . 67 242 . . . . . . . . . . . . . . . . . . . . . . . . Hover 8455 | . . . . 6 22 . 1 . 203 569 101 . . . . . . . 615 217 561 1151 710 1112 886 1939 362 Flight 3612 | . . . 32 189 164 1040 1001 516 670 . . . . . . . . . . . . . . . . . . Fastest Speed 15 | 50 160 120 34 40 24 17 32 32 32 58 56 108 120 120 120 110 110 110 15 15 15 15 28 30 30 23 26 Average Speed 62 | 158 160 151 133 58 38 26 32 32 38 58 98 116 120 120 120 115 110 110 57 82 28 29 30 34 44 27 31 Slowest Speed 650 | 160 160 500 240 110 110 34 140 32 58 58 128 120 120 120 120 120 110 110 196 84 29 93 39 35 650 90 94 Overloaded Moves 118 | . . . . . 5 7 . . . . . . . . . . . . 62 4 8 3 . 17 1 9 2 Propulsion Burnouts . | . . . . . . . . . . . . . . . . . . . . . . . . . . . . Robots Hopped 11 | . . . 3 . . 7 1 . . . . . . . . . . . . . . . . . . . . Potential Cave-ins 6 | . . . . . . . 2 . . . . . . . . . . . 2 . . . . . . . 2 Cave-ins Triggered . | . . . . . . . . . . . . . . . . . . . . . . . . . . . . Teleports 2 | . . . . . . . . . . . . . . . . . . . . . . . . . 2 . . Exploration Rate (%) 57 | 4 97 27 48 8 88 26 96 81 91 79 22 76 67 90 59 32 63 86 73 58 15 96 25 94 32 58 19 Regions Visited 27 Branch Regions 17 Pre-discovered Areas 9 | . . . . . . . 1 1 3 . . . . 3 . . 1 . . . . . . . . . . Known Exits Taken 13 | . . . . 1 . 1 . . . 1 1 . . . 1 1 1 1 . 1 1 . 1 1 1 . . Unknown Exits Taken 13 | 1 1 1 1 . . . 1 1 1 . . 1 1 1 . . . . 1 . . 1 . . . 1 . Scrap Searched 30 | . . . . . . . 7 3 2 4 . 2 3 . 3 . 4 1 . 1 . . . . . . . Spaces Dug 213 | . 8 4 . . 4 4 7 . . 1 14 18 . . 34 9 1 . . . 4 14 15 11 16 22 27 Terrain Destroyed 1626 | . 39 41 16 . 4 46 13 1 . 25 38 33 10 . 58 81 61 185 358 . 14 25 34 52 249 150 93 Melee 118 | . 3 . . . 4 . 7 . . 1 11 . . . . 8 . . . . . 14 15 11 16 22 6 Projectile 138 | . . . . . . 6 6 1 . 1 8 15 10 . . 16 6 . 5 . 14 11 11 6 9 4 9 AOE 1369 | . 36 41 16 . . 40 . . . 23 18 18 . . 58 57 55 185 353 . . . 8 35 224 124 78 Terrain Rammed . | . . . . . . . . . . . . . . . . . . . . . . . . . . . . Walls Destroyed . | . . . . . . . . . . . . . . . . . . . . . . . . . . . . Machines Disabled . | . . . . . . . . . . . . . . . . . . . . . . . . . . . . Actions | -11 -10 -10 -8 -7 -7 -6 -6 -6 -6 -5 -5 -5 -5 -5 -4 -4 -4 -4 -4 -3 -3 -3 -2 -2 -2 -1 -1 --------- Run | Yrd Mat Sub Mat Fac DSF Fac Low Low Zio Pro Fac Upp Upp Zhi Pro Fac Upp Upp War Pro Res Tes Res Qua Frg Acc Com Total 20752 | 81 625 337 545 232 264 1117 1069 538 1022 666 843 709 512 365 312 918 465 664 1150 217 634 1305 873 1266 1126 2370 527 Wait 672 | . 21 5 8 . 4 4 3 . 137 60 28 14 2 14 3 21 21 . 65 . 5 16 17 45 60 98 21 Move 17583 | 61 545 280 396 194 185 1026 999 515 872 568 623 602 490 322 268 730 409 637 905 216 560 1150 710 1111 886 1938 385 Hop 10 | . . . 3 . . 6 1 . . . . . . . . . . . . . . . . . . . . Pick Up 236 | 4 10 5 18 5 7 12 6 4 2 7 20 8 3 4 3 8 1 3 12 . 6 15 11 10 17 29 6 Fast Attach 157 | 8 3 3 14 4 15 4 2 . 2 1 14 4 1 4 1 12 1 1 16 . 7 6 2 4 5 20 3 Attach 123 | . 1 2 8 5 7 8 3 . 3 2 7 3 . 3 . 3 . 2 4 . 3 3 12 5 17 11 11 Detach 68 | 1 . . 4 4 5 5 3 . 1 . 5 2 . 2 . 1 . 1 6 . 5 3 2 4 4 9 1 Swap 327 | . 4 4 10 . 1 7 3 1 . 5 24 14 3 5 8 37 3 4 36 1 12 21 22 25 22 41 14 Drop 250 | 1 1 . 19 5 3 5 7 4 4 4 23 8 1 5 4 21 2 . 23 . 8 17 8 12 19 41 5 Fire 613 | 6 6 31 64 9 . 16 19 13 . 16 74 52 12 1 24 50 28 16 60 . 28 26 15 9 19 8 11 Melee 603 | . 34 7 1 6 33 24 23 1 1 3 23 2 . 5 1 11 . . 2 . . 47 74 40 65 131 69 Ram 3 | . . . . . . . . . . . . . . . . . . . . . . 1 . 1 . . 1 Kick 6 | . . . . . 4 . . . . . . . . . . 2 . . . . . . . . . . . Crush . | . . . . . . . . . . . . . . . . . . . . . . . . . . . . Escape Stasis 33 | . . . . . . . . . . . 2 . . . . . . . . . . . . . 12 19 . Rewire 43 | . . . . . . . . . . . . . . . . 22 . . 21 . . . . . . . . Trap . | . . . . . . . . . . . . . . . . . . . . . . . . . . . . Miscellaneous 25 | . . . . . . . . . . . . . . . . . . . . . . . . . . 25 . Route ------- -11/Scrapyard -10/Materials (discovered 5 exits: [*Mat x3] / [*Min] / [*Sub]) -10/Subcaves (discovered 3 exits: *Mat x2 / [*Rec]) -8/Materials -7/Factory (discovered 2 exits: *Fac / DSF) -7/DSF -6/Factory (discovered 3 exits: Fac / *Low x2) -6/Lower Caves -6/Lower Caves -6/Zion -5/Proximity Caves -5/Factory (discovered 2 exits: Fac / *Upp) -5/Upper Caves -5/Upper Caves (discovered 2 exits: *Fac / *Zhi) -5/Zhirov -4/Proximity Caves -4/Factory (discovered 3 exits: Res / *Upp x2) -4/Upper Caves -4/Upper Caves (discovered 2 exits: Res / *War) -4/Warlord -3/Proximity Caves -3/Research (discovered 4 exits: *Res / Arm / *Tes x2) -3/Testing -2/Research (discovered 3 exits: *Acc x2 / *Qua) -2/Quarantine (discovered 3 exits: *Acc / [*Sec] / *Frg) -2/Protoforge -1/Access (discovered 2 exits: [*Sur] / *Com) -1/Command History --------- Turn | Location | Event 11 | -11/Scrapyard | Discovered new exit (range 15) 132 | -11/Scrapyard | Entered Materials 316 | -10/Materials | Build established: Mutant 446 | -10/Materials | Discovered new exit (range 16) 626 | -10/Materials | Discovered new exit (range 16) 870 | -10/Materials | Discovered new exit (range 7) 948 | -10/Materials | Discovered new exit (range 7) 957 | -10/Materials | Prayed at D.C.S.S. Altar Unit 1076 | -10/Materials | Discovered new exit (range 9) 1153 | -10/Materials | Entered Subcaves 1217 | -10/Subcaves | Discovered new exit (range 13) 1348 | -10/Subcaves | Energy generation permanently improved by X0-1V1 (+10) 1353 | -10/Subcaves | X0-1V1 activates XOMVISION 1409 | -10/Subcaves | Discovered new exit (range 8) 1545 | -10/Subcaves | Ambushed by Subdwellers from Twisted Machinery 1579 | -10/Subcaves | Core integrity fell below 50% 1607 | -10/Subcaves | Lost 5 parts (3n1u1w) 1671 | -10/Subcaves | Discovered new exit (range 10) 1682 | -10/Subcaves | Entered Materials 1682 | -8/Materials | Evolved 4 slots: Propulsion x2, Utility x1, Weapon x1 1806 | -8/Materials | X0-1V1 added 0b10 threat records associated with you (minor) 1948 | -8/Materials | X0-1V1 sent hostile Y-45 Defender (x1) 1957 | -8/Materials | Ranged accuracy permanently improved by X0-1V1 (+5%) 2096 | -8/Materials | Garrison activated, responded to threat 2220 | -8/Materials | Build established: Scavenger-Gunner 2249 | -8/Materials | Discovered new exit (range 7) 2464 | -8/Materials | X0-1V1 upgraded hostiles (x2) 2472 | -8/Materials | System corruption reached 10% 2494 | -8/Materials | Core integrity fell below 50% 2500 | -8/Materials | Core integrity restored by X0-1V1 (+64) 2506 | -8/Materials | Entered Factory 2506 | -7/Factory | Evolved 2 slots: Propulsion x1, Utility x1 2526 | -7/Factory | Lost 13 parts (1p6n2u4w) 2529 | -7/Factory | X0-1V1 vaporized surrounding terrain (radius 15) 2537 | -7/Factory | X0-1V1 added 0b10 threat records associated with you (minor) 2646 | -7/Factory | Matter capacity permanently improved by X0-1V1 (+200) 2660 | -7/Factory | Discovered new exit (range 8) 2675 | -7/Factory | Identified exit to DSF 2675 | -7/Factory | Entered DSF 2693 | -7/DSF | Additional patrols routed to DSF 2712 | -7/DSF | X0-1V1 whisked you away to safety 2803 | -7/DSF | X0-1V1 sent allied Scrapper (x2) 2838 | -7/DSF | Sterilization system engaged 2858 | -7/DSF | Ambient heat levels rising (+10) 2859 | -7/DSF | Discovered new exit (range 14) 2862 | -7/DSF | Lost 3 parts (1n2w) 2873 | -7/DSF | Ambient heat levels rising (+10) 2888 | -7/DSF | Ambient heat levels rising (+10) 2897 | -7/DSF | Entered Factory 2897 | -6/Factory | Evolved 2 slots: Utility x2 2914 | -6/Factory | Identified exit to Factory 2914 | -6/Factory | X0-1V1 revealed exit location to -5/Factory 3007 | -6/Factory | Build established: Scavenger-Sprinter 3059 | -6/Factory | Spotted B-75 Beast 3224 | -6/Factory | X0-1V1 redirected Transport squads to designated parking area 3225 | -6/Factory | Identified exit to Lower Caves 3225 | -6/Factory | X0-1V1 revealed exit location to -6/Lower Caves 3243 | -6/Factory | X0-1V1 sent hostile H-66 Slayer (x3) 3247 | -6/Factory | Search patrols dispatched 3284 | -6/Factory | Lost 3 parts (2n1u) 3323 | -6/Factory | Discovered exit to Lower Caves (range 10) 3327 | -6/Factory | Entered Lower Caves 3333 | -6/Lower Caves | Met a Warlord Commander 3334 | -6/Lower Caves | Learned location of Warlord (-4) 3335 | -6/Lower Caves | Warlord Commander delivered Encrypted Comm Array 3341 | -6/Lower Caves | Encountered a Warlord checkpoint 3366 | -6/Lower Caves | X0-1V1 vaporized surrounding terrain (radius 21) 3521 | -6/Lower Caves | X0-1V1 sent you into danger 3554 | -6/Lower Caves | X0-1V1 activates XOMVISION 3561 | -6/Lower Caves | Attracted the attention of an 0b10 checkpoint 3590 | -6/Lower Caves | Discovered new exit (range 12) 3767 | -6/Lower Caves | X0-1V1 activates XOMVISION 3780 | -6/Lower Caves | Entered another Lower Caves area 3785 | -6/Lower Caves | Entered a destroyed Warlord outpost 3823 | -6/Lower Caves | Encountered a Warlord checkpoint 3875 | -6/Lower Caves | Learned location of Zion (-6) 3910 | -6/Lower Caves | X0-1V1 sent hostile L-41 Fighter (x2) 3974 | -6/Lower Caves | Discovered new exit (range 22) 3981 | -6/Lower Caves | Entered Zion 4000 | -6/Zion | System corruption cleaned by Quarantine Array 4019 | -6/Zion | Found CR-A16's Pointy Stick 4025 | -6/Zion | Discovered new exit (range 12) 4051 | -6/Zion | Learned location of Extension (-5) 4058 | -6/Zion | Build established: Derelict-Sprinter 4121 | -6/Zion | Learned Factory terminal intel 4136 | -6/Zion | Met Imprinter 4141 | -6/Zion | Imprinted 4143 | -6/Zion | Declared Zion's savior 4207 | -6/Zion | Found Prototype Device 4463 | -6/Zion | Entered Proximity Caves 4463 | -5/Proximity Caves | Accompanied by 4 allies 4498 | -5/Proximity Caves | Build established: Derelict-Mutant 4805 | -5/Proximity Caves | Learned Factory emergency access door positions 4810 | -5/Proximity Caves | X0-1V1 mutated your Utility slot to Weapon slot 4927 | -5/Proximity Caves | Entered Factory 4927 | -5/Factory | Accompanied by 4 allies 4927 | -5/Factory | Evolved 2 slots: Utility x2 4928 | -5/Factory | Identified exit to Upper Caves 4930 | -5/Factory | Loaded intel: 26 terminal locations 4938 | -5/Factory | X0-1V1 enhanced Transport squad support 4942 | -5/Factory | Identified exit to Factory 4942 | -5/Factory | X0-1V1 revealed exit location to -4/Factory 4943 | -5/Factory | X0-1V1 redirected Transport squads to designated parking area 4944 | -5/Factory | Identified Phasing AFG 4947 | -5/Factory | System corruption reached 10% 4954 | -5/Factory | X0-1V1 mutated your Weapon slot to Power slot 4955 | -5/Factory | X0-1V1 sent you into danger 4962 | -5/Factory | X0-1V1 released a cloud of subatomizers 4974 | -5/Factory | X0-1V1 announced a LAN party 4987 | -5/Factory | X0-1V1 added 0b10 threat records associated with you (considerable) 5165 | -5/Factory | Spotted B-75 Beast 5235 | -5/Factory | Zion Thermal Resupply teleported in 5416 | -5/Factory | X0-1V1 activates XOMVISION 5527 | -5/Factory | First assault squad dispatched 5538 | -5/Factory | Zion Recon squad teleported in 5555 | -5/Factory | X0-1V1 sent you to a vault 5671 | -5/Factory | Lost 4 allies 5719 | -5/Factory | X0-1V1 sent you into danger 5805 | -5/Factory | Destroyed 11 combat bots 5860 | -5/Factory | Sterilization system engaged 5860 | -5/Factory | Non-combat units ordered to evacuate 5927 | -5/Factory | Entered Upper Caves 5962 | -5/Upper Caves | Entered an active Warlord outpost 5976 | -5/Upper Caves | Learned Extension terminal intel 5987 | -5/Upper Caves | Destroyed 3T-K1K(g) 6501 | -5/Upper Caves | X0-1V1 sent hostile Thug (x4) 6562 | -5/Upper Caves | X0-1V1 vaporized surrounding terrain (radius 22) 6629 | -5/Upper Caves | Attracted the attention of an 0b10 base 6667 | -5/Upper Caves | Learned Research terminal intel 6667 | -5/Upper Caves | Learned Research stockpile data 6667 | -5/Upper Caves | Learned Armory trap positions 6668 | -5/Upper Caves | Destroyed 7 combat bots 6697 | -5/Upper Caves | Learned 8 Factory zone layouts 6734 | -5/Upper Caves | Build established: Scavenger-Gunner 6747 | -5/Upper Caves | Discovered new exit (range 6) 6828 | -5/Upper Caves | X0-1V1 mutated your Propulsion slot to Utility slot 6852 | -5/Upper Caves | Entered another Upper Caves area 6854 | -5/Upper Caves | Attracted the attention of an 0b10 checkpoint 6877 | -5/Upper Caves | Discovered exit to Factory (range 7) 6975 | -5/Upper Caves | Learned Factory trap positions 6989 | -5/Upper Caves | Learned 4 Factory zone layouts 7116 | -5/Upper Caves | Build established: Scavenger-Tank 7259 | -5/Upper Caves | Discovered new exit (range 22) 7283 | -5/Upper Caves | X0-1V1 sent hostile X-67 Chaingunner (x2) 7346 | -5/Upper Caves | Attacked by a delusional Derelict stockpiling parts 7407 | -5/Upper Caves | X0-1V1 activates XOMVISION 7487 | -5/Upper Caves | X0-1V1 vaporized surrounding terrain (radius 16) 7489 | -5/Upper Caves | Attracted the attention of an 0b10 outpost 7490 | -5/Upper Caves | Entered Zhirov 7490 | -5/Zhirov | Discovered new exit (range 3) 7514 | -5/Zhirov | Met Zhirov 7535 | -5/Zhirov | Learned location of Quarantine (-2) 7535 | -5/Zhirov | Learned location of Testing (-3) 7535 | -5/Zhirov | Learned location of Command (-1) 7556 | -5/Zhirov | Zhirov requested help retrieving the SGEMP Prototype 7574 | -5/Zhirov | Found Alien Artifact 7574 | -5/Zhirov | Identified Integrated Dissipator 7574 | -5/Zhirov | Installed Integrated Dissipator, increased core heat dissipation (+20) 7592 | -5/Zhirov | Found Alien Artifact 7752 | -5/Zhirov | Cloak Generator disabled 7752 | -5/Zhirov | Attacked by Zhirov 7762 | -5/Zhirov | Enhanced Grunts warped into view 7780 | -5/Zhirov | Zhirov detonated his lab 7785 | -5/Zhirov | Build established: Scavenger-Mutant 7930 | -5/Zhirov | Entered Proximity Caves 7933 | -4/Proximity Caves | Spotter reported a threat 7934 | -4/Proximity Caves | Spotter reported a threat 7986 | -4/Proximity Caves | Spotter reported a threat 8011 | -4/Proximity Caves | X0-1V1 downgraded hostiles (x2) 8132 | -4/Proximity Caves | Learned Research trap positions 8206 | -4/Proximity Caves | X0-1V1 activates XOMVISION 8324 | -4/Proximity Caves | Entered Factory 8324 | -4/Factory | Evolved 2 slots: Propulsion x1, Utility x1 8325 | -4/Factory | Identified exit to Research 8325 | -4/Factory | Identified exit to Upper Caves 8326 | -4/Factory | Loaded intel: 86 trap records 8446 | -4/Factory | Discovered exit to Upper Caves (range 7) 8460 | -4/Factory | X0-1V1 foreshadows a heat wave 8574 | -4/Factory | Search patrols dispatched 8584 | -4/Factory | Spotted B-86 Titan 8627 | -4/Factory | Retrieved Zion intel report: Emergency Access 8628 | -4/Factory | Zion Heavy squad teleported in 8659 | -4/Factory | Ambient heat levels rising (+10) 8731 | -4/Factory | System corruption reached 10% 8778 | -4/Factory | Ambient heat levels rising (+10) 8896 | -4/Factory | Ambient heat levels falling (-10) 8905 | -4/Factory | Cargo convoy interrupted 8933 | -4/Factory | X0-1V1 enhanced Transport squad support 9004 | -4/Factory | Zion Heavy squad teleported in 9016 | -4/Factory | Zion Defense Resupply teleported in 9079 | -4/Factory | Ambient heat levels falling (-10) 9081 | -4/Factory | X0-1V1 sent you to a vault 9105 | -4/Factory | Build established: Scavenger-Tank 9168 | -4/Factory | Retrieved Zion intel report: Prototype Stockpiles 9191 | -4/Factory | Retrieved Zion intel report: Prototype Schematics 9192 | -4/Factory | Zion Thermal Resupply teleported in 9262 | -4/Factory | Spotted B-86 Titan 9304 | -4/Factory | Allies destroyed B-86 Titan 9364 | -4/Factory | Found Prototype Protection 9364 | -4/Factory | Identified Zio. Heavy Carapace 9366 | -4/Factory | Found Prototype Protection 9366 | -4/Factory | Identified Zio. Weapon Casing 9398 | -4/Factory | Prototype Device reconfigured into Item Mimic 9413 | -4/Factory | Lost 4 allies 9431 | -4/Factory | Found Prototype Device 9431 | -4/Factory | Identified Active Sensor Suite 9484 | -4/Factory | Entered Upper Caves 9484 | -4/Upper Caves | Accompanied by 2 allies 9680 | -4/Upper Caves | Attracted the attention of an 0b10 base 9680 | -4/Upper Caves | Learned Extension terminal intel 9680 | -4/Upper Caves | Learned Research terminal intel 9680 | -4/Upper Caves | Learned Factory security intel 9680 | -4/Upper Caves | Learned 6 Proximity Caves zone layouts 9698 | -4/Upper Caves | Build established: Messiah-Skirmisher 9745 | -4/Upper Caves | Destroyed 7 combat bots 9825 | -4/Upper Caves | X0-1V1 activates XOMVISION 9887 | -4/Upper Caves | Learned location of Armory (-3) 10014 | -4/Upper Caves | Identified exit to Upper Caves 10014 | -4/Upper Caves | X0-1V1 revealed exit location to -4/Upper Caves 10052 | -4/Upper Caves | Entered another Upper Caves area 10053 | -4/Upper Caves | Identified exit to Warlord 10303 | -4/Upper Caves | X0-1V1 sent you into danger 10304 | -4/Upper Caves | Attracted the attention of an 0b10 checkpoint 10465 | -4/Upper Caves | X0-1V1 revealed exit location to -3/Research 10516 | -4/Upper Caves | Entered a destroyed Warlord outpost 10559 | -4/Upper Caves | Build established: Messiah-Tank 10610 | -4/Upper Caves | X0-1V1 activates XOMVISION 10810 | -4/Upper Caves | Entered Warlord 10847 | -4/Warlord | System corruption cleaned by Quarantine Array 10930 | -4/Warlord | Rebuked by Warlord 10939 | -4/Warlord | Found Prototype Special Weapon 10939 | -4/Warlord | Identified RU-N14's Throwing Claymores v3 10941 | -4/Warlord | Warlord's base attacked by MAIN.C 10978 | -4/Warlord | X0-1V1 mutated your Utility slot to Propulsion slot 11146 | -4/Warlord | Found Prototype Device 11146 | -4/Warlord | Identified Exp. Cloaking Device 11154 | -4/Warlord | Found Prototype Device 11154 | -4/Warlord | Identified Thermal Barrier 11158 | -4/Warlord | Found Prototype Processor 11158 | -4/Warlord | Identified Exp. Armor Integrity Analyzer 11178 | -4/Warlord | Found Prototype Reactor 11232 | -4/Warlord | Found Prototype Piercing Weapon 11232 | -4/Warlord | Identified Vortex Lance 11235 | -4/Warlord | Found Vortex Lance 11291 | -4/Warlord | Warlord forces counterattacked 11295 | -4/Warlord | X0-1V1 sent you into danger 11300 | -4/Warlord | Spotted Executioner 11315 | -4/Warlord | Destroyed Executioner 11365 | -4/Warlord | Destroyed 21 combat bots 11365 | -4/Warlord | Spotted Striker 11421 | -4/Warlord | Destroyed 13 combat bots 11421 | -4/Warlord | Lost 13 allies 11436 | -4/Warlord | Discovered new exit (range 12) 11448 | -4/Warlord | Spotted Striker 11448 | -4/Warlord | Destroyed 7N-1I7(g) 11457 | -4/Warlord | Spotted Executioner 11472 | -4/Warlord | X0-1V1 sent you into danger 11476 | -4/Warlord | Destroyed 7 combat bots 11497 | -4/Warlord | Lost 6 allies 11543 | -4/Warlord | Spotted Striker 11550 | -4/Warlord | Destroyed Striker 11575 | -4/Warlord | Destroyed 13 combat bots 11616 | -4/Warlord | Warlord base infiltrated, sounded retreat 11636 | -4/Warlord | X0-1V1 mutated your Propulsion slot to Weapon slot 11641 | -4/Warlord | Spotted Striker 11645 | -4/Warlord | Spotted Executioner 11671 | -4/Warlord | Attacked by Warlord forces 11674 | -4/Warlord | Destroyed 12 combat bots 11688 | -4/Warlord | Entered Proximity Caves 11688 | -3/Proximity Caves | Accompanied by 1 ally 11855 | -3/Proximity Caves | Spotted B-86 Titan 11869 | -3/Proximity Caves | Entered Research 11869 | -3/Research | Evolved 2 slots: Propulsion x2 11870 | -3/Research | Loaded intel: 76 trap records 11872 | -3/Research | Loaded intel: 23 terminal locations 11907 | -3/Research | Retrieved Zion intel report: Branch Access 11907 | -3/Research | Identified exit to Armory 11907 | -3/Research | Identified exit to Testing 11908 | -3/Research | Zion Hover Resupply teleported in 11924 | -3/Research | Zion Infowar Resupply teleported in 11928 | -3/Research | Found Prototype Device 11928 | -3/Research | Identified Exp. ECM Suite 11931 | -3/Research | Found Prototype Processor 11931 | -3/Research | Identified Spectral Analyzer 11973 | -3/Research | Spotted B-86 Titan 11979 | -3/Research | X0-1V1 redirected Transport squads to designated parking area 11982 | -3/Research | X0-1V1 sent you into danger 12007 | -3/Research | Found Prototype Processor 12007 | -3/Research | Identified Exp. Melee Analysis Suite 12018 | -3/Research | Discovered new exit (range 12) 12044 | -3/Research | Identified Vortex Chain Reactor 12133 | -3/Research | Found Exp. Melee Analysis Suite 12134 | -3/Research | Found Exp. Melee Analysis Suite 12169 | -3/Research | Entered Testing 12170 | -3/Testing | Spotted PG-G89I6N3MO7 12188 | -3/Testing | Destroyed PG-G89I6N3MO7 12194 | -3/Testing | Found Prototype Device 12198 | -3/Testing | Identified Exp. Weapon Cycler 12299 | -3/Testing | X0-1V1 mutated your Weapon slot to Propulsion slot 12306 | -3/Testing | X0-1V1 redirected Transport squads to designated parking area 12327 | -3/Testing | Destroyed PL-KNT9WGPBT6 12337 | -3/Testing | Found Prototype Processor 12337 | -3/Testing | Identified Exp. Core Analyzer 12346 | -3/Testing | X0-1V1 sent you to a vault 12385 | -3/Testing | Discovered new exit (range 21) 12426 | -3/Testing | X0-1V1 activates XOMVISION 12429 | -3/Testing | Found Prototype Device 12429 | -3/Testing | Identified Exp. Shield Generator 12462 | -3/Testing | X0-1V1 enhanced Transport squad support 12532 | -3/Testing | Scanned by Researcher 12628 | -3/Testing | Central database locked down 12628 | -3/Testing | Identified Transdimensional Reconstructor 12629 | -3/Testing | Retrieved Zion intel report: Prototype Stockpiles 12630 | -3/Testing | Build established: Scavenger-Sprinter 12635 | -3/Testing | Retrieved Zion intel report: Emergency Access 12651 | -3/Testing | Retrieved Zion intel report: Unaware Schematics 12678 | -3/Testing | Retrieved Zion intel report: Active Garrisons 12686 | -3/Testing | Found Prototype Energy Cannon 12686 | -3/Testing | Identified Imp. Potential Cannon 12701 | -3/Testing | Retrieved Zion intel report: Guard Positions 12722 | -3/Testing | Spotted Striker 12723 | -3/Testing | Spotted Striker 12739 | -3/Testing | Found Gamma Bomb Array 12752 | -3/Testing | X0-1V1 sent you into danger 12753 | -3/Testing | System corruption reached 10% 12777 | -3/Testing | Entered Research 12777 | -2/Research | Evolved 2 slots: Utility x2 12778 | -2/Research | Identified exit to Quarantine 12779 | -2/Research | Loaded intel: 25 terminal locations 12804 | -2/Research | Spotted B-90 Cyclops 12814 | -2/Research | X0-1V1 redirected Transport squads to designated parking area 12859 | -2/Research | Zion Infowar Resupply teleported in 12864 | -2/Research | Found Exp. Signal Interpreter 12932 | -2/Research | Destroyed B-90 Cyclops 12956 | -2/Research | X0-1V1 mutated your Propulsion slot to Weapon slot 13046 | -2/Research | Discovered new exit (range 11) 13066 | -2/Research | Zion Heavy squad teleported in 13087 | -2/Research | Discovered new exit (range 22) 13091 | -2/Research | Zion Light squad teleported in 13098 | -2/Research | Cargo convoy interrupted 13099 | -2/Research | Spotted Executioner 13099 | -2/Research | Spotted Striker 13122 | -2/Research | X0-1V1 turns hostiles against one another 13155 | -2/Research | Lost 8 allies 13159 | -2/Research | Found Prototype Device 13159 | -2/Research | Identified Exp. EM Shield 13173 | -2/Research | Destroyed 7 combat bots 13194 | -2/Research | Found Prototype Launcher 13197 | -2/Research | Identified exit to Access 13199 | -2/Research | Spotted B-90 Cyclops 13213 | -2/Research | Destroyed B-90 Cyclops 13220 | -2/Research | Lost 3 parts (2u1w) 13225 | -2/Research | Identified Gui. Micro-nuke Launcher 13283 | -2/Research | Entered Quarantine 13285 | -2/Quarantine | X0-1V1 sent you into danger 13331 | -2/Quarantine | Found Alien Artifact 13336 | -2/Quarantine | Cryocooling Duct disabled 13339 | -2/Quarantine | Cryocooling Duct disabled 13350 | -2/Quarantine | X0-1V1 activates XOMVISION 13351 | -2/Quarantine | Ambient heat levels rising (+20) 13351 | -2/Quarantine | Non-combat units ordered to evacuate 13354 | -2/Quarantine | Ambient heat levels rising (+20) 13354 | -2/Quarantine | Combat units ordered to evacuate 13365 | -2/Quarantine | Found Alien Artifact 13411 | -2/Quarantine | Retrieved Zion intel report: Prototype Stockpiles 13444 | -2/Quarantine | Identified exit to Protoforge 13444 | -2/Quarantine | X0-1V1 revealed exit location to -2/Protoforge 13454 | -2/Quarantine | Quarantine Guard activated 13505 | -2/Quarantine | Spotted Quarantine Guard 13514 | -2/Quarantine | Spotted Quarantine Guard 13517 | -2/Quarantine | Spotted Quarantine Guard 13521 | -2/Quarantine | Destroyed Quarantine Guard 13533 | -2/Quarantine | Spotted Quarantine Guard 13534 | -2/Quarantine | Spotted Quarantine Guard 13551 | -2/Quarantine | Found Alien Slashing Weapon 13555 | -2/Quarantine | Identified Sigix Broadsword 13574 | -2/Quarantine | Retrieved Zion intel report: Component Stockpiles 13585 | -2/Quarantine | Retrieved Zion intel report: Unaware Schematics 13587 | -2/Quarantine | Spotted Quarantine Guard 13619 | -2/Quarantine | Identified Core Reset Matrix 13619 | -2/Quarantine | Identified Subatomic Replicator 13626 | -2/Quarantine | Discovered exit to Access (range 5) 13626 | -2/Quarantine | Spotted Quarantine Guard 13628 | -2/Quarantine | Destroyed Quarantine Guard 13648 | -2/Quarantine | Retrieved Zion intel report: Component Schematics 13650 | -2/Quarantine | Found Prototype Device 13650 | -2/Quarantine | Identified Adv. Kinecellerator 13668 | -2/Quarantine | Spotted Quarantine Guard 13672 | -2/Quarantine | Build established: Scavenger-Scout 13672 | -2/Quarantine | Spotted Quarantine Guard 13692 | -2/Quarantine | Destroyed Quarantine Guard 13715 | -2/Quarantine | Destroyed Quarantine Guard 13734 | -2/Quarantine | Spotted Quarantine Guard 13743 | -2/Quarantine | Destroyed Quarantine Guard 13763 | -2/Quarantine | Found Alien Artifact 13763 | -2/Quarantine | Identified Dimensional Node Initializer 13763 | -2/Quarantine | Initialized slip node 13767 | -2/Quarantine | Found Dimensional Node Initializer 13774 | -2/Quarantine | Found Transdimensional Reconstructor 13786 | -2/Quarantine | Spotted Fortress 13811 | -2/Quarantine | Discovered new exit (range 5) 13811 | -2/Quarantine | Spotted Quarantine Guard 13811 | -2/Quarantine | X0-1V1 sent you to a vault 13843 | -2/Quarantine | Allies destroyed Quarantine Guard 13905 | -2/Quarantine | Destroyed Quarantine Guard 13905 | -2/Quarantine | Entered Protoforge 13932 | -2/Protoforge | Spotted Hotshot 13932 | -2/Protoforge | Spotted Hotshot 13932 | -2/Protoforge | Spotted Hotshot 13932 | -2/Protoforge | Spotted Hotshot 13938 | -2/Protoforge | X0-1V1 sent you to a vault 13939 | -2/Protoforge | Found Prototype Device 13939 | -2/Protoforge | Identified Exp. Transmission Jammer 13943 | -2/Protoforge | Found Prototype Device 13943 | -2/Protoforge | Identified Exp. Shock Absorption System 13947 | -2/Protoforge | Found Chaos Jack 13952 | -2/Protoforge | Found Centrium Heavy Armor Plating 14041 | -2/Protoforge | X0-1V1 sent allied Savage (x2) 14041 | -2/Protoforge | Superfortress began startup sequence 14079 | -2/Protoforge | Destroyed 9 combat bots 14123 | -2/Protoforge | Spotted Hotshot 14124 | -2/Protoforge | Destroyed Hotshot 14126 | -2/Protoforge | Destroyed Hotshot 14131 | -2/Protoforge | Destroyed Hotshot 14133 | -2/Protoforge | Destroyed Hotshot 14147 | -2/Protoforge | Spotted Overlord 14189 | -2/Protoforge | X0-1V1 added 0b10 threat records associated with you (minor) 14196 | -2/Protoforge | Retrieved Zion intel report: Emergency Access 14198 | -2/Protoforge | Build established: Scavenger-Ninja 14233 | -2/Protoforge | Discovered exit to Access (range 8) 14234 | -2/Protoforge | Spotted B-90 Cyclops 14240 | -2/Protoforge | Initialized slip node 14265 | -2/Protoforge | Retrieved Zion intel report: Component Schematics 14328 | -2/Protoforge | X0-1V1 added 0b10 threat records associated with you (minor) 14405 | -2/Protoforge | First assault squad dispatched 14427 | -2/Protoforge | Warped through subspace to slip node 14539 | -2/Protoforge | X0-1V1 added 0b10 threat records associated with you (considerable) 14656 | -2/Protoforge | Spotted Hotshot 14657 | -2/Protoforge | Spotted Hotshot 14665 | -2/Protoforge | Warped through subspace to slip node 14669 | -2/Protoforge | Spotted Hotshot 14669 | -2/Protoforge | Spotted Hotshot 14670 | -2/Protoforge | Entered Access 14670 | -1/Access | Evolved 2 slots: Propulsion x1, Utility x1 14782 | -1/Access | Zion Hover Resupply teleported in 14843 | -1/Access | Zion Hover Resupply teleported in 14920 | -1/Access | First assault squad dispatched 14923 | -1/Access | Zion Resource Resupply teleported in 14930 | -1/Access | X0-1V1 sent allied Striker (x2) 14940 | -1/Access | X0-1V1 sent you into danger 14947 | -1/Access | Used Subatomic Replicator to replicate Hvy. Scimitar of Distortion 14949 | -1/Access | Found Hvy. Scimitar of Distortion 14969 | -1/Access | Spotted B-99 Colossus 14990 | -1/Access | Zion hero teleported in (NK-0LA) 15007 | -1/Access | Exp. Transmission Jammer reconfigured into Item Mimic 15052 | -1/Access | Found Gamma Bomb Array 15062 | -1/Access | X0-1V1 sent hostile X-87 Electro (x3) 15207 | -1/Access | Zion Hacker squad teleported in 15207 | -1/Access | Sensors blinded by X0-1V1 15266 | -1/Access | X0-1V1 sent you to a vault 15274 | -1/Access | Found Prototype Reactor 15274 | -1/Access | Identified Zero-point Reactor 15284 | -1/Access | Found Prototype Launcher 15284 | -1/Access | Identified Tactical Quantum Warhead 15311 | -1/Access | Spotted B-99 Colossus 15354 | -1/Access | Discovered new exit (range 6) 15402 | -1/Access | Retrieved Zion intel report: Active Garrisons 15435 | -1/Access | X0-1V1 sent you into danger 15485 | -1/Access | Retrieved Zion intel report: Component Stockpiles 15546 | -1/Access | Destroyed 10 combat bots 15581 | -1/Access | X0-1V1 sent hostile H-88 Terminator (x3) 15604 | -1/Access | X0-1V1 destroyed Energy Cycler 15604 | -1/Access | Energy Cycler disabled 15631 | -1/Access | X0-1V1 turns hostiles against one another 15640 | -1/Access | Retrieved Zion intel report: Unaware Analyses 15641 | -1/Access | Zion Heavy squad teleported in 15665 | -1/Access | X0-1V1 turns hostiles against one another 15730 | -1/Access | Lost 3 allies 15731 | -1/Access | Found Thermal Barrier 15785 | -1/Access | High security lockdown imminent 15826 | -1/Access | X0-1V1 activates XOMVISION 15865 | -1/Access | High security lockdown engaged 15893 | -1/Access | Discovered new exit (range 8) 15895 | -1/Access | Entered Command 15908 | -1/Command | Build established: Sprinter 15960 | -1/Command | Spotted B-99 Colossus 15963 | -1/Command | Spotted M Guard 15968 | -1/Command | Spotted M Guard 15968 | -1/Command | Spotted Combat Programmer 15968 | -1/Command | Spotted Combat Programmer 15996 | -1/Command | X0-1V1 downgraded hostiles (x3) 15996 | -1/Command | Spotted B-90 Cyclops 16047 | -1/Command | Destroyed B-90 Cyclops 16106 | -1/Command | Met MAIN.C 16116 | -1/Command | 0b10 Conduit disabled 16194 | -1/Command | Destroyed MAIN.C Shell 16197 | -1/Command | MAIN.C activated Command garrisons 16199 | -1/Command | Found Centrium Heavy Armor Plating 16245 | -1/Command | System corruption reached 10% 16253 | -1/Command | Core integrity fell below 50% 16258 | -1/Command | Core integrity fell below 20% 16268 | -1/Command | X0-1V1 rescued you from certain death 16289 | -1/Command | X0-1V1 rescued you from certain death 16303 | -1/Command | Destroyed by X-87 Electro with Compact HERF Cannon Last Messages --------------- 16297_ P-80 Master unfolds itself. 16297_ Nanosword blown off. 16297_ Exp. Melee Analysis Suite blown off. 16297_ E-15 Imp destroyed. 16297_ X0-1V1 is highly amused! 16297_ Acquired Nanosword. 16297_ Slug penetrates Door. 16298_ Exp. Cloaking Device severed. 16299_ Nanosword destroyed. 16300_ Slammed into P-80 Master. 16301_ C-45 Heavy ARC bursts open, deploying its payload. 16301_ H-88 Terminator unfolds itself. 16301_ Slug penetrates Reinforced Barrier. 16302_ Core Analyzer severed. 16302_ C-45 Heavy ARC bursts open, deploying its payload. 16302_ L-61 Swordsman unfolds itself. 16302_ G-73 Enforcer unfolds itself. 16303_ C-45 Heavy ARC bursts open, deploying its payload. 16303_ S-43 Plague unfolds itself. 16303_ X0-1V1 cackles wildly! Map ----- +----------------------------------------------------+ | ????????????????????????? ????????????????????? | | ????????????????????????#///#????????????????????? | | ????????????????????????# #????????????????????? | | ????????????????????????# #????????????????????? | | ????????????????????????# #????????????????????? | | ????????????????????????# #????????????????????? | | ????????????????????????# #????????????????????? | | ????????????????????????# #????????????????????? | | ????????????????????????# #????????????????????? | | ????????????????????????# #????????????????????? | | ????????????????????????#x #????????????????????? | | ????????????????????????# #????????????????????? | | ????????????????????????# #????????????????????# | | ????????????????????????#p #????????????????????# | | ????????????????????????# #????????????????????# | | ?????????????????????####p i#????????????????????# | | ###################### ;C #????????????????????# | | #"% #????????????????????# | | % # g #????????????????????# | | ##???????????????????# | | ################## # ;##??????????????????# | | ?????????????????# # # ##?#####???????????# | | ?????????????????#! ## ; ##"###" "####?#####??# | | ?????????????????#/%= ### w### ### #?# #### | | ?????????????????#/pc#### W ### W ### ### !*#!## | | ?????????????????# eec @ i pi C ![ +!! | | ?????????????????# p c !!+!! | | ?????????????????# s s !=+!* | | ?????????????????# hpgg x =+ | | ?????????????????# g h ss C [ + | | ?????????????????# ###lh ### W ### ### #### | | ?????????????????######?#xhh#?# #?# #?# #??# | | ????????????????????????# #?#####?#####?#####??# | | ????????????????????????#s s#????????????????????# | | ?????????????????????????ls #????????????????????# | | ?????????????????????????ss #????????????????????# | | ????????????????????????? #????????????????????# | | ????????????????????????? h#????????????????????# | | ?????????????????????????C #??????????????##????# | | ?????????????????????????b #??????????????#"##### | | ????????????????????????? h????????????????# | | ????????????????????????????????????????????# | | ????????????????????????????????????????????# " | | ????????????????????????????????????????????# "" | | ????????????????????????????????????????????# "" | | ????????????????????????????????????????????# " | | ????????????????????????????????????????????# | | ????????????????????????????????????????????# | | ????????????????????????????????????????????####+# | | ??????????????????????????????????????????????# | +----------------------------------------------------+ Best States ------------- Heat Dissipation 154 Coolant Potential 80 Energy Generation 82 Energy Capacity 2240 Matter Stores 1100 Matter Capacity 1200 Sight Range 27 Robot Scan Range 20 Terrain Scan Range 16 Terrain Scan Density 10 Jamming Range 22 Cloak Strength 4 Power Amplification 40 Additional Mass Support 20 Armor Coverage 1200 Resistance: TH 96 Resistance: EM 75 Phase Shifting 15 Evasion (%) 85 Melee Accuracy 24 Core Analysis 9 Recoil Reduction 4 Particle Charging 30 Defensive Hacking 10 Item Schematics ----------------- Adv. Transmission Jammer | -6/Factory | Hacked Hvy. Shock Bomb Launcher | -6/Zion | Archive Imp. Target Analyzer | -6/Zion | Archive Hvy. Flak Cannon | -6/Zion | Archive Imp. Transmission Jammer | -6/Zion | Archive Imp. Kinecellerator | -6/Zion | Archive Nuclear Pulse Thruster | -6/Zion | Archive Imp. Antigrav System | -6/Zion | Archive Wave Gun | -6/Zion | Archive Imp. Reaction Control System | -6/Zion | Archive Imp. Weapon Cycler | -6/Zion | Archive Thermal Shield | -6/Zion | Archive Enh. Optical Array | -6/Zion | Archive HERF Cannon | -6/Zion | Archive Assault Drone Bay | -5/Zhirov | Free Exp. Heat Sink | -5/Zhirov | Free Exp. Optical Array | -5/Zhirov | Free Imp. Arc Thrower | -5/Zhirov | Free Gravity Neutralizer | -4/Factory | Z-intel Enh. Fission Core | -4/Factory | Z-intel Lgt. Neutrino Core | -4/Factory | Z-intel Exp. Targeting Computer | -4/Factory | Z-intel Imp. Energy Well | -4/Factory | Z-intel Adv. Energy Well | -4/Factory | Z-intel Adv. Gravity Neutralizer | -4/Factory | Z-intel Prc. Energy Filter | -4/Factory | Z-intel Imp. Matter Compressor | -4/Factory | Z-intel Thunder Hammer | -4/Factory | Z-intel Prc. Matter Filter | -4/Factory | Z-intel Spectral Analyzer | -3/Testing | Archive Adv. EM Disruption Field | -3/Testing | Archive Prc. Phase Gun | -3/Testing | Archive Stealth Drone Bay | -3/Testing | Archive Exp. Matter Compressor | -3/Testing | Archive Shock Maul | -3/Testing | Archive Imp. Diametric Drive | -3/Testing | Archive Centrium Heavy Armor Plating | -3/Testing | Archive Neutron Missile Launcher | -3/Testing | Archive Cld. Plasma Rifle | -3/Testing | Archive Exp. Signal Interpreter | -3/Testing | Archive Exp. Coolant Injector | -3/Testing | Archive Hvy. Hardcell Cannon | -3/Testing | Archive Exp. Terrain Scanner | -3/Testing | Archive Graviton Reactor | -3/Testing | Archive Energy Filter | -2/Quarantine | Z-intel Adv. VSS Leg | -2/Quarantine | Z-intel Com. Battery | -2/Quarantine | Z-intel Nova Cannon | -2/Quarantine | Z-intel Adv. Thermal Shield | -2/Quarantine | Z-intel Adv. ECM Suite | -2/Quarantine | Z-intel System Shield | -2/Quarantine | Z-intel Dispersion Rifle | -2/Quarantine | Z-intel Force Lance | -2/Quarantine | Z-intel Myomer Leg | -2/Quarantine | Z-intel Dynamic Insulation System | -2/Quarantine | Z-intel Adv. Medium Treads | -2/Quarantine | Z-intel Imp. Arc Projector | -2/Protoforge | Z-intel Imp. Armor Integrity Analyzer | -2/Protoforge | Z-intel Point Defense System | -2/Protoforge | Z-intel Imp. Shock Absorption System | -2/Protoforge | Z-intel Adv. Heavy Siege Treads | -2/Protoforge | Z-intel Imp. Melee Analysis Suite | -2/Protoforge | Z-intel Hvy. Gauss Cannon | -2/Protoforge | Z-intel Thunder Leg | -2/Protoforge | Z-intel Lgt. Particle Reactor | -2/Protoforge | Z-intel Great Axe | -2/Protoforge | Z-intel Centrium Leg | -2/Protoforge | Z-intel Gravmag Array | -2/Protoforge | Z-intel Robot Schematics ------------------ G-50 Soldier | -6/Zion | Archive L-41 Fighter | -6/Zion | Archive S-27 Virus | -6/Zion | Archive G-73 Enforcer | -6/Zion | Archive G-67 Veteran | -3/Testing | Archive S-43 Plague | -3/Testing | Archive T-07 Excavator | -3/Testing | Archive K-01 Serf | -3/Testing | Archive E-15 Imp | -3/Testing | Archive A-27 Freighter | -3/Testing | Archive A-02 Transporter | -3/Testing | Archive B-74 Champion | -3/Testing | Z-intel M-30 Cleanser | -3/Testing | Z-intel R-10 Processor | -3/Testing | Z-intel H-88 Terminator | -2/Quarantine | Z-intel C-65 Expert | -2/Quarantine | Z-intel R-06 Scavenger | -2/Quarantine | Z-intel Fabricated ------------ Nothing Repaired ---------- Nothing Studied --------- Surge Thruster | -6/Factory | Hacked Blade Saw | -6/Factory | Hacked Myomer Leg | -4/Factory | Hacked Lrn. Proton Cannon | -4/Factory | Hacked Hyp. Gauss Cannon | -4/Factory | Hacked Angular Momentum Engine | -4/Factory | Hacked Antigrav Array | -3/Testing | Hacked Cmb. Linear Gravjet | -2/Research | Hacked Alien Tech Used ----------------- Integrated Dissipator Sigix Broadsword Dimensional Node Initializer Transdimensional Reconstructor Subatomic Replicator Achievements -------------- None Challenges ------------ None Game ------ Seed TargetingPulseBoregun Manual? 0 Play Time 04:36:31 Cumulative 1267.7 hours Start 2026.06.23 @ 10:07:08 End 2026.06.23 @ 16:18:30 Sessions 5 Manual Loads 0 Difficulty Rogue Special Mode None Game No. 399 Rogue 397 Adventurer 2 Explorer 0 Win Type - Total 105 Types 33/24/22/2/1/1/16/2/1/3 Lore% 98 Gallery% 92 Achievement% 90 Wizard Run 0 Options --------- Layout 0 ASCII 0 Keyboard 1 Movement Numpad Keybinds 0 Fullscreen 1 Font 24/Smallcaps Map View 76x50 Zoom Use 0% Tactical HUD 1 Map Filters NONE Filters NONE Steam 1 RUN: 1c81bf84-9411-4370-8aab-4aac7874f9b8